Workbook

Sheet Title Page
B4: Micropower Database 2017 Release
C5: This database aggregates global generation and capacity data for micropower and nuclear sources. “Micropower” is used to refer to sources of electricity that are relatively small, modular, mass-producible, quick-to-deploy, and hence rapidly scalable; for the purposes of this database, this includes renewables other than large hydroelectric dams (“large hydro” is defined as greater than 50 MW) as well as cogeneration of electricity together with useful heat in factories or buildings.
D9: For an explanation of the methodology, please consult "Micropower Methodology (August 2017).doc".
D10: Date modified | E10: 2013-08-15
D12: Contact | E12: Emily Goldfield | F12: Ryan Laemel | G12: Amory Lovins
E13: egoldfield@rmi.org | F13: rlaemel@rmi.org | G13: ablovins@rmi.org
D15: Contents
E16: Annual capacity data for micropower sources and nuclear
E17: Annual generation data for micropower sources and nuclear
E18: Annual capacity and generation data for:
E19: Nuclear
E20: Wind
E21: Solar PV
E22: Hydro
E23: Geothermal
E24: Biomass and waste
E25: Cogeneration
E27: Rocky Mountain Institute
E28: 22830 Two Rivers Road
E29: Basalt CO 81621 USA
E30: +1 (970) 930 5750

Sheet Capacity (GW)
B2: Installed capacity (GW)
B3: For sources and calculations, please see respective spreadsheets.
N4: Verification of our findings with BNEF
C5: Nuclear | D5: Wind | E5: Small Hydro | F5: Biomass & Waste | G5: Photovoltaic | H5: Geothermal | I5: Renewables excl. big hydro | J5: Non-biomass Cogeneration | K5: Micropower | L5: Capacity factor | N5: Capacity additions Renewables excl. big hydro | O5: Ratio RMI/BNEF
B6: source | C6: (IAEA PRIS) | D6: (GWEC) | E6: (BNEF) | F6: (BNEF) | G6: (EPIA) | H6: (BNEF) | I6: n/a | J6: (DGTW) | K6: n/a | L6: n/a | N6: (BNEF)
B7: 1990 | C7: =Nuclear!G10/1000 -> 318.253 | D7: =Wind!D10/1000 -> 1.743 | G7: =PV!F10/1000 -> 0.268
B8: 1991 | C8: =Nuclear!G11/1000 -> 321.924 | D8: =Wind!D11/1000 -> 1.983 | G8: =PV!F11/1000 -> 0.3180672
B9: 1992 | C9: =Nuclear!G12/1000 -> 325.261 | D9: =Wind!D12/1000 -> 2.321 | G9: =PV!F12/1000 -> 0.3742174
B10: 1993 | C10: =Nuclear!G13/1000 -> 333.914 | D10: =Wind!D13/1000 -> 2.801 | G10: =PV!F13/1000 -> 0.4329842
B11: 1994 | C11: =Nuclear!G14/1000 -> 336.904 | D11: =Wind!D14/1000 -> 3.531 | G11: =PV!F14/1000 -> 0.4964348
B12: 1995 | C12: =Nuclear!G15/1000 -> 341.387 | D12: =Wind!D15/1000 -> 4.821 | G12: =PV!F15/1000 -> 0.5688854
B13: 1996 | C13: =Nuclear!G16/1000 -> 347.281 | D13: =Wind!D16/1000 -> 6.1 | G13: =PV!F16/1000 -> 0.6511028
B14: 1997 | C14: =Nuclear!G17/1000 -> 347.88 | D14: =Wind!D17/1000 -> 7.6 | G14: =PV!F17/1000 -> 0.7542886
B15: 1998 | C15: =Nuclear!G18/1000 -> 344.9 | D15: =Wind!D18/1000 -> 10.2 | G15: =PV!F18/1000 -> 0.8914072
B16: 1999 | C16: =Nuclear!G19/1000 -> 347.353 | D16: =Wind!D19/1000 -> 13.6 | G16: =PV!F19/1000 -> 1.0640436
B17: 2000 | C17: =Nuclear!G20/1000 -> 349.984 | D17: =Wind!D20/1000 -> 17.4 | E17: =Hydro!D9 -> 103.689 | F17: =F18 -> 39.406 | G17: =PV!F20/1000 -> 1.288 | H17: =Geothermal!E8 -> 7.779 | I17: =SUM(D17:H17) -> 169.562 | J17: ='Cogeneration (CHP)'!G8 -> 223.2398456 | K17: =SUM(D17:H17)+J17 -> 392.8018456 | L17: =('Generation (TWh)'!K18/8766*1000)/K17 -> 0.6496140386
B18: 2001 | C18: =Nuclear!G21/1000 -> 352.715 | D18: =Wind!D21/1000 -> 23.9 | E18: =Hydro!D10 -> 105.4 | F18: ='Biomass & Waste'!E9 -> 39.406 | G18: =PV!F21/1000 -> 1.615 | H18: =Geothermal!E9 -> 7.906 | I18: =SUM(D18:H18) -> 178.227 | J18: ='Cogeneration (CHP)'!G9 -> 236.917319 | K18: =SUM(D18:H18)+J18 -> 415.144319 | L18: =('Generation (TWh)'!K19/8766*1000)/K18 -> 0.6423746214 | N18: 9.756 | O18: =(I18-I17)/N18 -> 0.8881713817
B19: 2002 | C19: =Nuclear!G22/1000 -> 357.481 | D19: =Wind!D22/1000 -> 31.1 | E19: =Hydro!D11 -> 108.026 | F19: ='Biomass & Waste'!E10 -> 41.405 | G19: =PV!F22/1000 -> 2.069 | H19: =Geothermal!E10 -> 8.128 | I19: 190.728 | J19: ='Cogeneration (CHP)'!G10 -> 252.9338303 | K19: 443.6618303 | L19: =('Generation (TWh)'!K20/8766*1000)/K19 -> 0.635253381 | N19: 11.983 | O19: =(I19-I18)/N19 -> 1.043227906
B20: 2003 | C20: =Nuclear!G23/1000 -> 359.827 | D20: =Wind!D23/1000 -> 39.431 | E20: =Hydro!D12 -> 110.883 | F20: ='Biomass & Waste'!E11 -> 43.492 | G20: =PV!F23/1000 -> 2.635 | H20: =Geothermal!E11 -> 8.284 | I20: 204.725 | J20: ='Cogeneration (CHP)'!G11 -> 264.4070441 | K20: 469.1320441 | L20: =('Generation (TWh)'!K21/8766*1000)/K20 -> 0.6354026657 | N20: 13.328 | O20: 1.050195078
B21: 2004 | C21: =Nuclear!G24/1000 -> 364.673 | D21: =Wind!D24/1000 -> 47.62 | E21: =Hydro!D13 -> 115.529 | F21: ='Biomass & Waste'!E12 -> 45.084 | G21: =PV!F24/1000 -> 3.723 | H21: =Geothermal!E12 -> 8.21 | I21: 220.166 | J21: ='Cogeneration (CHP)'!G12 -> 279.594543 | K21: 499.760543 | L21: =('Generation (TWh)'!K22/8766*1000)/K21 -> 0.6278738224 | N21: 15.268 | O21: 1.011330888
B22: 2005 | C22: =Nuclear!G25/1000 -> 368.125 | D22: =Wind!D25/1000 -> 59.091 | E22: =Hydro!D14 -> 120.639 | F22: ='Biomass & Waste'!E13 -> 51.053 | G22: =PV!F25/1000 -> 5.112 | H22: =Geothermal!E13 -> 8.361 | I22: 244.256 | J22: ='Cogeneration (CHP)'!G13 -> 296.423458 | K22: 540.679458 | L22: =('Generation (TWh)'!K23/8766*1000)/K22 -> 0.6155010094 | N22: 22.585 | O22: 1.066637149
B23: 2006 | C23: =Nuclear!G26/1000 -> 369.581 | D23: =Wind!D26/1000 -> 74.006 | E23: =Hydro!D15 -> 126.454 | F23: ='Biomass & Waste'!E14 -> 53.826 | G23: =PV!F26/1000 -> 6.66 | H23: =Geothermal!E14 -> 8.877 | I23: 269.823 | J23: ='Cogeneration (CHP)'!G14 -> 314.325 | K23: 584.148 | L23: =('Generation (TWh)'!K24/8766*1000)/K23 -> 0.6100735631 | N23: 25.681 | O23: 0.9955609205
B24: 2007 | C24: =Nuclear!G27/1000 -> 371.707 | D24: =Wind!D27/1000 -> 93.639 | E24: =Hydro!D16 -> 131.779 | F24: ='Biomass & Waste'!E15 -> 56.346 | G24: =PV!F27/1000 -> 9.183 | H24: =Geothermal!E15 -> 9.283 | I24: 300.23 | J24: ='Cogeneration (CHP)'!G15 -> 338.7147702 | K24: 638.9447702 | L24: =('Generation (TWh)'!K25/8766*1000)/K24 -> 0.5973329435 | N24: 31.076 | O24: 0.9784721328
B25: 2008 | C25: =Nuclear!G28/1000 -> 371.557 | D25: =Wind!D28/1000 -> 120.267 | E25: =Hydro!D17 -> 137.312 | F25: ='Biomass & Waste'!E16 -> 59.286 | G25: =PV!F28/1000 -> 15.844 | H25: =Geothermal!E16 -> 9.491 | I25: 342.2 | J25: ='Cogeneration (CHP)'!G16 -> 362.5490836 | K25: 704.7490836 | L25: =('Generation (TWh)'!K26/8766*1000)/K25 -> 0.5847657154 | N25: 42.567 | O25: 0.9859750511
B26: 2009 | C26: =Nuclear!G29/1000 -> 370.697 | D26: =Wind!D29/1000 -> 158.864 | E26: =Hydro!D18 -> 142.652 | F26: ='Biomass & Waste'!E17 -> 64.884 | G26: =PV!F29/1000 -> 23.185 | H26: =Geothermal!E17 -> 9.762 | I26: 399.347 | J26: ='Cogeneration (CHP)'!G17 -> 385.2183615 | K26: 784.5653615 | L26: =('Generation (TWh)'!K27/8766*1000)/K26 -> 0.56618979 | N26: 58.068 | O26: 0.984139285
B27: 2010 | C27: =Nuclear!G30/1000 -> 375.277 | D27: =Wind!D30/1000 -> 197.686 | E27: =Hydro!D19 -> 148.842 | F27: ='Biomass & Waste'!E18 -> 72.289 | G27: =PV!F30/1000 -> 40.336 | H27: =Geothermal!E18 -> 10.248 | I27: 469.401 | J27: ='Cogeneration (CHP)'!G18 -> 418.6022748 | K27: 888.0032748 | L27: =('Generation (TWh)'!K28/8766*1000)/K27 -> 0.5413688252 | N27: 68.985 | O27: 1.015496122
B28: 2011 | C28: =Nuclear!G31/1000 -> 368.921 | D28: =Wind!D31/1000 -> 238.035 | E28: =Hydro!D20 -> 153.62 | F28: ='Biomass & Waste'!E19 -> 77.538 | G28: =PV!F31/1000 -> 70.469 | H28: =Geothermal!E19 -> 10.26 | I28: 549.922 | J28: ='Cogeneration (CHP)'!G19 -> 451.8428115 | K28: =SUM(D28:H28)+J28 -> 1001.764812 | L28: =('Generation (TWh)'!K29/8766*1000)/K28 -> 0.529135969 | N28: 80.131 | O28: 1.00486703
B29: 2012 | C29: =Nuclear!G32/1000 -> 373.263 | D29: =Wind!D32/1000 -> 282.43 | E29: =Hydro!D21 -> 159.617 | F29: ='Biomass & Waste'!E20 -> 84.861 | G29: =PV!F32/1000 -> 100.504 | H29: =Geothermal!E20 -> 10.913 | I29: =SUM(D29:H29) -> 638.325 | J29: ='Cogeneration (CHP)'!G20 -> 484.3379871 | K29: =SUM(D29:H29)+J29 -> 1122.662987 | L29: =('Generation (TWh)'!K30/8766*1000)/K29 -> 0.5150151264 | N29: 91.996 | O29: 0.9609439541
B30: 2013 | C30: =Nuclear!G33/1000 -> 371.793 | D30: =Wind!D33/1000 -> 318.105 | E30: =Hydro!D22 -> 166.911 | F30: ='Biomass & Waste'!E21 -> 92.614 | G30: =PV!F33/1000 -> 138.856 | H30: =Geothermal!E21 -> 11.516 | I30: =SUM(D30:H30) -> 728.002 | J30: ='Cogeneration (CHP)'!G21 -> 524.965978 | K30: =SUM(D30:H30)+J30 -> 1252.967978 | L30: =('Generation (TWh)'!K31/8766*1000)/K30 -> 0.5049230593 | N30: 92.648 | O30: =(I30-I29)/N30 -> 0.9679323893
B31: 2014 | C31: =Nuclear!G34/1000 -> 376.341 | D31: =Wind!D34/1000 -> 369.553 | E31: =Hydro!D23 -> 171.307 | F31: ='Biomass & Waste'!E22 -> 98.447 | G31: =PV!F34/1000 -> 178.391 | H31: =Geothermal!E22 -> 12.457 | I31: =SUM(D31:H31) -> 830.155 | J31: ='Cogeneration (CHP)'!G22 -> 561.9927043 | K31: =SUM(D31:H31)+J31 -> 1392.147704 | L31: =('Generation (TWh)'!K32/8766*1000)/K31 -> 0.4935858364 | N31: 105.965 | O31: =(I31-I30)/N31 -> 0.9640258576
B32: 2015 | C32: =Nuclear!G35/1000 -> 382.855 | D32: =Wind!D35/1000 -> 432.883 | E32: =Hydro!D24 -> 174.82 | F32: ='Biomass & Waste'!E23 -> 103.271 | G32: =PV!F35/1000 -> 229.9 | H32: =Geothermal!E23 -> 13.209 | I32: =SUM(D32:H32) -> 954.083 | J32: ='Cogeneration (CHP)'!G23 -> 600.9683527 | K32: =SUM(D32:H32)+J32 -> 1555.051353 | L32: =('Generation (TWh)'!K33/8766*1000)/K32 -> 0.4786146052 | N32: 127.904 | O32: =(I32-I31)/N32 -> 0.9689141856
B33: 2016 | C33: =Nuclear!G36/1000 -> 391.116 | D33: =Wind!D36/1000 -> 486.79 | E33: =Hydro!D25 -> 177.926 | F33: ='Biomass & Waste'!E24 -> 106.71 | G33: =PV!F36/1000 -> 306.5 | H33: =Geothermal!E24 -> 14.067 | I33: =SUM(D33:H33) -> 1091.993 | J33: ='Cogeneration (CHP)'!G24 -> 632.1107194 | K33: =SUM(D33:H33)+J33 -> 1724.103719 | L33: =('Generation (TWh)'!K34/8766*1000)/K33 -> 0.4660568989 | N33: 137.605 | O33: =(I33-I32)/N33 -> 1.002216489
B36: Verification: IRENA 2017 capacity | D36: 466.505 | F36: 109.731 | G36: 290.791 | H36: 12.628 | J36: Source: http://www.irena.org/DocumentDownloads/Publications/IRENA_RE_Capacity_Statistics_2017.pdf
B37: Ratio RMI/IRENA | D37: =(D33/D36) -> 1.043482921 | F37: =(F33/F36) -> 0.9724690379 | G37: =(G33/G36) -> 1.054021617 | H37: =(H33/H36) -> 1.11395312
D39: Wind | E39: Small Hydro | F39: Biomass | G39: Photovoltaic | H39: Geothermal | I39: Renewables excl. big hydro
B40: 2016 inferred capacity factors | D40: ='Generation (TWh)'!D34/(D33*8766/1000) -> 0.2248615602 | E40: ='Generation (TWh)'!E34/(E33*8766/1000) -> 0.3947629914 | F40: ='Generation (TWh)'!F34/(F33*8766/1000) -> 0.6830805454 | G40: ='Generation (TWh)'!G34/(G33*8766/1000) -> 0.1239597646 | H40: ='Generation (TWh)'!H34/(H33*8766/1000) -> 0.632545323
B41: weighted capacity factor calc. | D41: =D40*'Generation (TWh)'!D34 -> 215.7613018 | E41: =E40*'Generation (TWh)'!E34 -> 243.0601402 | F41: =F40*'Generation (TWh)'!F34 -> 436.4660007 | G41: =G40*'Generation (TWh)'!G34 -> 41.28510859 | H41: =H40*'Generation (TWh)'!H34 -> 49.33853519
B42: 2016 generation-weighted capacity factor | I42: =SUM(D41:H41)/'Generation (TWh)'!I34 -> 0.3755478822
B44: 2016 capacity factors, with wind and PV based on actual in-service date by project* | D44: 0.347 | E44: =E40 -> 0.3947629914 | F44: =F40 -> 0.6830805454 | G44: 0.272 | H44: =H40 -> 0.632545323 | J44: Source: https://www.eia.gov/electricity/monthly/pdf/epm.pdf
B45: weighted capacity factor calc. | D45: =D44*'Generation (TWh)'!D34 -> 332.9567386 | E45: =E44*'Generation (TWh)'!E34 -> 243.0601402 | F45: =F44*'Generation (TWh)'!F34 -> 436.4660007 | G45: =G44*'Generation (TWh)'!G34 -> 90.59027796 | H45: =H44*'Generation (TWh)'!H34 -> 49.33853519
B46: 2016 generation-weighted capacity factor, with wind and PV based on actual in-service date by project | I46: =SUM(D45:H45)/'Generation (TWh)'!I34 -> 0.4389703864
D47: *When capacity grows quickly (e.g. >50 percent per year), the generation in that year, divided by the product of the end-of-year capacity times the number of hours per year, substantially understates the capacity factor. To account for this, we have adjusted the capacity factors for wind to the 2015 average U.S. capacity factor from EIA (Electric Power Monthly, Table 6.7.B), which, as LBNL explains (see Wiser and Bollinger, 2013 and 2014 Wind Technologies Market Reports, p. VII), is net of at least several percentage points' curtailment. For 2015 PV we use the utility-scale U.S. median of 26.4% from LBNL Utility-Scale Solar 2015: An Empirical Analysis of Project Cost, Performance, and Pricing Trends in the United States. All these capacity factors are used only in this box, provided for readers' convenience. Elsewhere, as described in the Methodology file, this database makes no assumptions about global capacity factors, due to lack of reliable data, but simply cites capacity from one data source and output from another.

Sheet Generation (TWh)
B2: Annual electricity generation (TWh/y)
B3: For sources and calculations, please see respective spreadsheets.
C5: Nuclear | D5: Wind | E5: Small Hydro | F5: Biomass | G5: Photovoltaic | H5: Geothermal | I5: Renewables | J5: Cogeneration | K5: Micropower | L5: Micropower / | M5: Large Hydro | N5: Worldwide gross generation | O5: Micropower / | P5: Nuclear / | Q5: Renewables excl. big hydro / | R5: Total renewables /
I6: (excl. big hydro) | L6: nuclear ratio | O6: total generation | P6: total generation | Q6: total generation | R6: total generation
B7: source | C7: (IAEA PRIS) | D7: (BP) | E7: (BNEF * CF) | F7: (BNEF * CF) | G7: (BP) | H7: (BNEF * CF, REN21) | I7: n/a | J7: (DGTW) | K7: n/a | M7: (BP, BNEF) | N7: (BP) | O7: n/a | P7: n/a | Q7: n/a | R7: n/a
B8: 1990 | C8: =Nuclear!H10 -> 1908.80709 | D8: =Wind!E10 -> 3.632470516 | G8: =PV!G10 -> 0.3865626263 | N8: 11913.74813
B9: 1991 | C9: =Nuclear!H11 -> 1996.14009 | D9: =Wind!E11 -> 4.086106675 | G9: =PV!G11 -> 0.5064604487 | N9: 12188.9231
B10: 1992 | C10: =Nuclear!H12 -> 2015.60306 | D10: =Wind!E12 -> 4.732812019 | G10: =PV!G12 -> 0.4688133923 | N10: 12290.97648
B11: 1993 | C11: =Nuclear!H13 -> 2081.627282 | D11: =Wind!E13 -> 5.696168819 | G11: =PV!G13 -> 0.5567955038 | N11: 12549.66449
B12: 1994 | C12: =Nuclear!H14 -> 2125.160042 | D12: =Wind!E14 -> 7.125568228 | G12: =PV!G14 -> 0.6009917031 | N12: 12880.13053
B13: 1995 | C13: =Nuclear!H15 -> 2190.94 | D13: =Wind!E15 -> 8.26308304 | G13: =PV!G15 -> 0.6415996381 | N13: 13334.91869
B14: 1996 | C14: =Nuclear!H16 -> 2269.39 | D14: =Wind!E16 -> 9.179570358 | G14: =PV!G16 -> 0.7049251433 | N14: 13761.06007
B15: 1997 | C15: =Nuclear!H17 -> 2263.79 | D15: =Wind!E17 -> 11.99289586 | G15: =PV!G17 -> 0.7570716606 | N15: 14090.42448
B16: 1998 | C16: =Nuclear!H18 -> 2298.27 | D16: =Wind!E18 -> 15.91878946 | G16: =PV!G18 -> 0.879724855 | N16: 14464.27484
B17: 1999 | C17: =Nuclear!H19 -> 2378.93 | D17: =Wind!E19 -> 21.23784874 | G17: =PV!G19 -> 0.9645570474 | N17: 14881.2235
B18: 2000 | C18: =Nuclear!H20 -> 2443.85 | D18: =Wind!E20 -> 31.50290163 | E18: =Hydro!F9 -> 363.5751096 | F18: ='Biomass & Waste'!G8 -> 237.2500368 | G18: =PV!G20 -> 1.150853936 | H18: =Geothermal!H8 -> 48.41540694 | I18: =SUM(D18:H18) -> 681.8943089 | J18: ='Cogeneration (CHP)'!J8 -> 1554.922346 | K18: =F18+J18+G18+D18+E18+H18 -> 2236.816655 | L18: =K18/C18 -> 0.9152839392 | M18: =Hydro!L9 -> 2292.959904 | N18: 15510.53094 | O18: =K18/N18 -> 0.1442127715 | P18: =C18/N18 -> 0.1575606927 | Q18: =I18/N18 -> 0.04396331186 | R18: =(I18+M18)/N18 -> 0.1917957692
B19: 2001 | C19: =Nuclear!H21 -> 2511.09 | D19: =Wind!E21 -> 38.63928243 | E19: =Hydro!F10 -> 365.0749722 | F19: ='Biomass & Waste'!G9 -> 238.3883019 | G19: =PV!G21 -> 1.425708425 | H19: =Geothermal!H9 -> 49.0238287 | I19: =SUM(D19:H19) -> 692.5520937 | J19: ='Cogeneration (CHP)'!J9 -> 1645.148786 | K19: 2337.70088 | L19: =K19/C19 -> 0.9309506548 | M19: =Hydro!L10 -> 2222.41187 | N19: 15736.98844 | O19: 0.1485481729 | P19: =C19/N19 -> 0.1595661082 | Q19: =I19/N19 -> 0.0440079178 | R19: =(I19+M19)/N19 -> 0.1852301013
B20: 2002 | C20: =Nuclear!H22 -> 2553.18 | D20: =Wind!E22 -> 52.97929141 | E20: =Hydro!F11 -> 371.8765116 | F20: ='Biomass & Waste'!G10 -> 244.8696631 | G20: =PV!G22 -> 1.807259555 | H20: =Geothermal!H10 -> 50.3887475 | I20: 721.9214732 | J20: ='Cogeneration (CHP)'!J10 -> 1748.66761 | K20: 2470.589083 | L20: 0.9676517452 | M20: =Hydro!L11 -> 2263.505352 | N20: 16286.08082 | O20: 0.1516994242 | P20: 0.1567706822 | Q20: 0.04432751385 | R20: 0.1833115565
B21: 2003 | C21: =Nuclear!H23 -> 2504.78 | D21: =Wind!E23 -> 63.391006 | E21: =Hydro!F12 -> 381.2868126 | F21: ='Biomass & Waste'!G11 -> 257.2709233 | G21: =PV!G23 -> 2.294241983 | H21: =Geothermal!H11 -> 52.11891922 | I21: 756.3619031 | J21: ='Cogeneration (CHP)'!J11 -> 1856.675326 | K21: 2613.037229 | L21: 1.043220254 | M21: =Hydro!L12 -> 2245.419488 | N21: 16885.48607 | O21: 0.1547504891 | P21: 0.1483392299 | Q21: 0.04479361151 | R21: 0.1777728742
B22: 2004 | C22: =Nuclear!H24 -> 2616.24 | D22: =Wind!E24 -> 85.58007667 | E22: =Hydro!F13 -> 392.8728348 | F22: ='Biomass & Waste'!G12 -> 269.317818 | G22: =PV!G24 -> 3.009475065 | H22: =Geothermal!H12 -> 53.18224378 | I22: =SUM(D22:H22) -> 803.9624483 | J22: ='Cogeneration (CHP)'!J12 -> 1946.690558 | K22: 2750.653006 | L22: 1.051376405 | M22: =Hydro!L13 -> 2410.848296 | N22: 17671.88723 | O22: 0.1556513445 | P22: 0.1480453087 | Q22: 0.04549386481 | R22: 0.1819166625
B23: 2005 | C23: =Nuclear!H25 -> 2626.34 | D23: =Wind!E25 -> 104.2193111 | E23: =Hydro!F14 -> 409.5703116 | F23: ='Biomass & Waste'!G13 -> 285.8011853 | G23: =PV!G25 -> 4.229917053 | H23: =Geothermal!H13 -> 53.50183461 | I23: 857.3225596 | J23: ='Cogeneration (CHP)'!J13 -> 2059.903642 | K23: 2917.226202 | L23: 1.110757252 | M23: =Hydro!L14 -> 2510.616866 | N23: 18430.61909 | O23: 0.158281509 | P23: 0.1424987402 | Q23: 0.04651621064 | R23: 0.1827360985
B24: 2006 | C24: =Nuclear!H26 -> 2660.85 | D24: =Wind!E26 -> 133.0357515 | E24: =Hydro!F15 -> 428.1060186 | F24: ='Biomass & Waste'!G14 -> 317.5253392 | G24: =PV!G26 -> 5.782574851 | H24: =Geothermal!H14 -> 55.51981164 | I24: 939.9694959 | J24: ='Cogeneration (CHP)'!J14 -> 2183.998429 | K24: 3123.967925 | L24: 1.174048866 | M24: =Hydro!L15 -> 2610.234103 | N24: 19131.65251 | O24: 0.1632879295 | P24: 0.1390810333 | Q24: 0.04913164169 | R24: 0.1855670125
B25: 2007 | C25: =Nuclear!H27 -> 2608.18 | D25: =Wind!E27 -> 170.8424246 | E25: =Hydro!F16 -> 448.0662006 | F25: ='Biomass & Waste'!G15 -> 334.1529072 | G25: =PV!G27 -> 7.702112602 | H25: =Geothermal!H15 -> 59.18655931 | I25: 1019.950204 | J25: ='Cogeneration (CHP)'!J15 -> 2325.705553 | K25: 3345.655757 | L25: 1.282754931 | M25: =Hydro!L16 -> 2635.665537 | N25: 20019.30486 | O25: 0.167121475 | P25: 0.130283245 | Q25: 0.0509483327 | R25: 0.1826045293
B26: 2008 | C26: =Nuclear!H28 -> 2597.81 | D26: =Wind!E28 -> 219.0594312 | E26: =Hydro!F17 -> 466.9201134 | F26: ='Biomass & Waste'!G16 -> 350.2604322 | G26: =PV!G28 -> 12.5912305 | H26: =Geothermal!H16 -> 62.02760238 | I26: 1110.85881 | J26: ='Cogeneration (CHP)'!J16 -> 2501.724643 | K26: 3612.583453 | L26: 1.39062651 | M26: =Hydro!L17 -> 2800.130005 | N26: 20420.57074 | O26: 0.1769090345 | P26: 0.1272153474 | Q26: 0.05439900891 | R26: 0.191522013
B27: 2009 | C27: =Nuclear!H29 -> 2558.06 | D27: =Wind!E29 -> 277.899072 | E27: =Hydro!F18 -> 486.1518408 | F27: ='Biomass & Waste'!G17 -> 372.3783651 | G27: =PV!G29 -> 20.91791861 | H27: =Geothermal!H17 -> 64.01708991 | I27: 1221.364286 | J27: ='Cogeneration (CHP)'!J17 -> 2672.605971 | K27: =F27+J27+G27+D27+E27+H27 -> 3893.970258 | L27: 1.522235701 | M27: =Hydro!L18 -> 2769.517506 | N27: 20261.37185 | O27: =K27/N27 -> 0.1921869006 | P27: 0.1262530503 | Q27: 0.06028043388 | R27: 0.1969699693
B28: 2010 | C28: =Nuclear!H30 -> 2629.82 | D28: =Wind!E30 -> 341.417277 | E28: =Hydro!F19 -> 505.6211268 | F28: ='Biomass & Waste'!G18 -> 409.500841 | G28: =PV!G30 -> 33.81625431 | H28: =Geothermal!G18 -> 67.2 | I28: =SUM(D28:H28) -> 1357.555499 | J28: ='Cogeneration (CHP)'!J18 -> 2856.587582 | K28: =F28+J28+G28+D28+E28+H28 -> 4214.143081 | L28: 1.602445445 | M28: =Hydro!L19 -> 2935.634213 | N28: 21561.71287 | O28: =K28/N28 -> 0.1954456544 | P28: 0.121967119 | Q28: 0.06296139399 | R28: 0.1991117189
B29: 2011 | C29: =Nuclear!H31 -> 2517.98 | D29: =Wind!E31 -> 436.540591 | E29: =Hydro!F20 -> 526.0879836 | F29: ='Biomass & Waste'!G19 -> 451.6319902 | G29: =PV!G31 -> 64.69511238 | H29: =Geothermal!G19 -> 69 | I29: =SUM(D29:H29) -> 1547.955677 | J29: ='Cogeneration (CHP)'!J19 -> 3098.636139 | K29: =F29+J29+G29+D29+E29+H29 -> 4646.591816 | L29: 1.845364862 | M29: =Hydro!L20 -> 2975.560558 | N29: 22242.44009 | O29: =K29/N29 -> 0.2089065677 | P29: 0.1132061046 | Q29: 0.06959468794 | R29: 0.2033732008
B30: 2012 | C30: =Nuclear!H32 -> 2346.19 | D30: =Wind!E32 -> 526.8814284 | E30: =Hydro!F21 -> 543.9101382 | F30: ='Biomass & Waste'!G20 -> 487.0225238 | G30: =PV!G32 -> 100.0339074 | H30: =Geothermal!G20 -> 72 | I30: =SUM(D30:H30) -> 1729.847998 | J30: ='Cogeneration (CHP)'!J20 -> 3338.551694 | K30: =F30+J30+G30+D30+E30+H30 -> 5068.399692 | L30: 2.160268219 | M30: =Hydro!L21 -> 3133.38498 | N30: 22797.31052 | O30: 0.2223244574 | P30: 0.10291521 | Q30: 0.07587947693 | R30: 0.2133248557
B31: 2013 | C31: =Nuclear!H33 -> 2358.86 | D31: =Wind!E33 -> 644.4102388 | E31: =Hydro!F22 -> 566.0749692 | F31: ='Biomass & Waste'!G21 -> 532.6175579 | G31: =PV!G33 -> 137.5611538 | H31: =Geothermal!G21 -> 76 | I31: 1956.66392 | J31: ='Cogeneration (CHP)'!J21 -> 3589.167234 | K31: 5545.831154 | L31: 2.351064139 | M31: =Hydro!L22 -> 3231.121009 | N31: 23402.87884 | O31: 0.2369721773 | P31: 0.1007935825 | Q31: 0.08360783016 | R31: 0.2216729388
B32: 2014 | C32: =Nuclear!H34 -> 2410.37 | D32: =Wind!E34 -> 709.297772 | E32: =Hydro!F23 -> 589.110264 | F32: ='Biomass & Waste'!G22 -> 577.2461404 | G32: =PV!G34 -> 196.3329875 | H32: =Geothermal!G22 -> 74 | I32: 2145.987164 | J32: ='Cogeneration (CHP)'!J22 -> 3877.52055 | K32: =F32+J32+G32+D32+E32+H32 -> 6023.507714 | L32: 2.498997131 | M32: =Hydro!L23 -> 3296.947357 | N32: 23843.98945 | O32: =K32/N32 -> 0.2526216398 | P32: =C32/N32 -> 0.1010892076 | Q32: =I32/N32 -> 0.09000117907 | R32: =(I32+M32)/N32 -> 0.228272812
B33: 2015 | C33: =Nuclear!H35 -> 2441.33 | D33: =Wind!E35 -> 828.0351756 | E33: =Hydro!F24 -> 603.7503606 | F33: ='Biomass & Waste'!G23 -> 611.4907386 | G33: =PV!G35 -> 256.1909288 | H33: =Geothermal!G23 -> 75 | I33: 2374.467204 | J33: ='Cogeneration (CHP)'!J23 -> 4149.806153 | K33: =F33+J33+G33+D33+E33+H33 -> 6524.273356 | L33: 2.672425832 | M33: =Hydro!L24 -> 3299.531604 | N33: 24215.52701 | O33: =K33/N33 -> 0.2694252061 | P33: 0.1008167197 | Q33: =I33/N33 -> 0.09805556587 | R33: 0.234312423
B34: 2016 | C34: =Nuclear!H36 -> 2476.22 | D34: =Wind!E36 -> 959.5295061 | E34: =Hydro!F25 -> 615.7115676 | F34: ='Biomass & Waste'!G24 -> 638.9671081 | G34: =PV!G36 -> 333.0524925 | H34: =Geothermal!G24 -> 78 | I34: 2625.260674 | J34: ='Cogeneration (CHP)'!J24 -> 4418.487099 | K34: =F34+J34+G34+D34+E34+H34 -> 7043.747774 | L34: =K34/C34 -> 2.844556531 | M34: =Hydro!L25 -> 3407.226201 | N34: 24816.35239 | O34: =K34/N34 -> 0.2838349353 | P34: 0.09978178747 | Q34: 0.1057875321 | R34: =(I34+M34)/N34 -> 0.2430851553
D64: Source Data
D66: Historical | E66: BP Statistical Review of World Energy (June 2010)
E67: BP Statistical Review of World Energy (2011): 2010 Data
D69: Historical | E69: BP Statistical Review of World Energy (June 2010) hydro generation data minus RMI-calculated small hydro generation
E70: BP Statistical Review of World Energy (2011): 2010 Data
E71: SB note: The Hydroelectricity data for previous years is different between the 2011 & 2010 reports; consider updating past data.
E73: ALL OTHER DATA TAKEN FROM "SOURCE DATA" SPREADHEETS IN THIS WORKBOOK

Sheet Nuclear
B2: This sheet presents the source data needed to find nuclear capacity and output.
B3: Capacity in the summary sheet comes from IAEA; generation in the summary sheet comes from IAEA.
B4: IAEA capacity includes dozens of units (38 in Japan since 2011) in Long-Term Shutdown as defined in the World Nuclear Industry Status Report (www.worldnuclearreport.org), increasing column G and decreasing column J
B6: NUCLEAR
C7: New | F7: Net New | G7: Cumulative | H7: (IAEA) Electrical | I7: (BP) Electrical | J7: Inferred
C8: Connections | D8: Shut Downs | E8: Uprates | F8: Capacity | G8: Capacity | H8: Output | I8: Output | J8: capacity
C9: (MW) | D9: (MW) | E9: (MW) | F9: (MW) | G9: (MW) | H9: (TWh/y) | I9: (TWh/y) | J9: factor
B10: 1990 | C10: 10543 | D10: 4978 | F10: =C10-D10 -> 5565 | G10: 318253 | H10: 1908.80709 | I10: 2001.842499
B11: 1991 | C11: 3678 | D11: 1809 | F11: =C11-D11 -> 1869 | G11: 321924 | H11: 1996.14009 | I11: 2097.573377
B12: 1992 | C12: 4809 | D12: 2046 | F12: 2763 | G12: 325261 | H12: 2015.60306 | I12: 2113.819366
B13: 1993 | C13: 9012 | D13: 0 | F13: 9012 | G13: 333914 | H13: 2081.627282 | I13: 2186.363651
B14: 1994 | C14: 4332 | D14: 1414 | F14: 2918 | G14: 336904 | H14: 2125.160042 | I14: 2227.866241
B15: 1995 | C15: 3536 | D15: 769 | F15: 2767 | G15: 341387 | H15: 2190.94 | I15: 2324.038682 | J15: =I15*1000000/(8766*G15) -> 0.7765955664
B16: 1996 | C16: 7080 | D16: 1285 | F16: 5795 | G16: 347281 | H16: 2269.39 | I16: 2408.707755 | J16: 0.7912279518
B17: 1997 | C17: 3570 | D17: 2781 | F17: 789 | G17: 347880 | H17: 2263.79 | I17: 2391.595326 | J17: 0.7842540467
B18: 1998 | C18: 2952 | D18: 4080 | F18: -1128 | G18: 344900 | H18: 2298.27 | I18: 2433.58057 | J18: 0.804916942
B19: 1999 | C19: 2704 | D19: 652 | F19: 2052 | G19: 347353 | H19: 2378.93 | I19: 2523.865072 | J19: 0.8288837263
B20: 2000 | C20: 3063 | D20: 1395 | F20: 1668 | G20: 349984 | H20: 2443.85 | I20: 2582.154799 | J20: 0.8416521123
B21: 2001 | C21: 2696 | D21: 0 | F21: 2696 | G21: 352715 | H21: 2511.09 | I21: 2654.967494 | J21: 0.8586848734
B22: 2002 | C22: 5022 | D22: 1067 | F22: 3955 | G22: 357481 | H22: 2553.18 | I22: 2697.564625 | J22: 0.8608300666
B23: 2003 | C23: 1600 | D23: 988 | F23: 612 | G23: 359827 | H23: 2504.78 | I23: 2643.059645 | J23: 0.837937737
B24: 2004 | C24: 4785 | D24: 1385 | F24: 3400 | G24: 364673 | H24: 2616.24 | I24: 2759.794745 | J24: 0.8633198115
B25: 2005 | C25: 3823 | D25: 940 | F25: 2883 | G25: 368125 | H25: 2626.34 | I25: 2767.053202 | J25: 0.8574735468
B26: 2006 | C26: 1492 | D26: 2236 | F26: =C26-D26 -> -744 | G26: 369581 | H26: 2660.85 | I26: 2806.141241 | J26: 0.8661605988
B27: 2007 | C27: 1842 | D27: 0 | F27: 1842 | G27: 371707 | H27: 2608.18 | I27: 2746.481075 | J27: 0.8428967992
B28: 2008 | C28: 0 | D28: 408 | F28: -408 | G28: 371557 | H28: 2597.81 | I28: 2737.859277 | J28: 0.8405899787
B29: 2009 | C29: 1068 | D29: 2506 | E29: 645 | F29: =C29-D29+E29 -> -793 | G29: 370697 | H29: 2558.06 | I29: 2711.95073 | J29: 0.8345670949
B30: 2010 | C30: 3779 | D30: 130 | E30: 926 | F30: =C30-D30+E30 -> 4575 | G30: 375277 | H30: 2629.82 | I30: 2766.133785 | J30: 0.8408523972
B31: 2011 | C31: 4004 | D31: 11358 | E31: 1005 | F31: =C31-D31+E31 -> -6349 | G31: 368921 | H31: 2517.98 | I31: 2652.157567 | J31: 0.8200955945
B32: 2012 | C32: 2918 | D32: 1342 | E32: 952 | F32: 2528 | G32: 373263 | H32: 2346.19 | I32: 2471.522055 | J32: 0.7553497359
B33: 2013 | C33: 3986 | D33: 3576 | E33: 283 | F33: =C33-D33+E33 -> 693 | G33: 371793 | H33: 2358.86 | I33: 2491.94982 | J33: 0.7646040915
B34: 2014 | C34: 4721 | D34: 605 | E34: 367 | F34: =C34-D34+E34 -> 4483 | G34: 376341 | H34: 2410.37 | I34: 2541.243136 | J34: =I34*1000000/(8766*G34) -> 0.7703058884
B35: 2015 | C35: 9367 | D35: 3863 | E35: 1019 | F35: =C35-D35+E35 -> 6523 | G35: 382855 | H35: 2441.33 | I35: 2575.257071 | J35: =I35*1000000/(8766*G35) -> 0.7673346305
B36: 2016 | C36: 9545 | D36: 1405 | E36: 153 | F36: =C36-D36+E36 -> 8293 | G36: 391116 | H36: 2476.22 | I36: 2616.540507 | J36: =I36*1000000/(8766*G36) -> 0.7631684597
B38: Note: Data in bold from respective sources; other data extrapolated/interpolated.
B40: Source Data
B42: Capacity | C42: IAEA Nuclear Power Reactors in the World, 2017 Edition
C43: http://www-pub.iaea.org/MTCD/Publications/PDF/RDS_2-37_web.pdf
B45: Capacity | C45: IAEA PRIS Database accessed 5 July 2017
C46: http://www.iaea.org/PRIS/WorldStatistics/WorldTrendNuclearPowerCapacity.aspx
C47: http://www.iaea.org/PRIS/WorldStatistics/WorldTrendinElectricalProduction.aspx
B49: Generation | C49: Energy Information Administration, International Energy Annual 2006. Table 2.7
C50: http://www.fypower.org/pdf/EIA_IntlEnergyOutlook(2006).pdf
B52: Generation | C52: BP Statistical Review of World Energy, 2017 Edition
C53: http://www.bp.com/en/global/corporate/energy-economics/statistical-review-of-world-energy.html

Sheet Nuclear Uprates (hidden)
C2: Year | D2: Approximate Megawatts Electric (US) | E2: Approximate Megawatts Electric (France) | F2: Approximate Megawatts Electric (Finland) | G2: Approximate Megawatts Electric (Mexico) | H2: Approximate Megawatts Electric (Sweden) | I2: Approximate Megawatts Electric (Russia) | J2: Approximate Megawatts Electric (Spain) | K2: Total
C3: 2010 | D3: 851 | E3: 135 | G3: 280 | K3: =SUM(D3:J3) -> 1266
C4: 2011 | D4: 730 | F4: 260 | H4: 707 | K4: =SUM(D4:J4) -> 1697 | L4: ABL note: use projected 2011 uprates until we have a time to find new numbers
C5: 2012 | D5: 643 | K5: 643 | L5: SB note: from NEI 01/2012 Update
C6: 2013 | D6: 101 | K6: 101
C7: 2014 | D7: 0 | K7: 0
C8: 2015 | D8: 310 | K8: 310
C9: 2016 | D9: 145 | K9: 145
C10: TOTAL
C14: Source Data
C15: Outlook: | D15: Nuclear Energy Institute, U.S. Nuclear Expected Uprates
D16: http://www.nei.org/resourcesandstats/documentlibrary/reliableandaffordableenergy/graphicsandcharts/usnuclearexpectedpoweruprates/
C18: Outlook: | D18: World Nuclear Association Country Reports (see Micropower Methodology (May 2010).doc)
D19: http://www.world-nuclear.com/info/inf84.html

Sheet Wind
B2: This sheet presents RMI's source data for wind capacity and output.
B3: Capacity in the summary sheet comes from GWEC; generation in the summary sheet comes from BP.
B4: Actual capacity factors are much higher than the inferred number shown in column G due to timing in installation; see "Capacity (GW)" tab.
B6: WIND
C7: Net annual | D7: Installed | E7: (BP) Electrical | F7: (EIA) Electrical | G7: Inferred
C8: additions | D8: Capacity | E8: Output | F8: Output | G8: capacity
C9: (MW) | D9: (MW) | E9: (TWh/y) | F9: (TWh/y) | G9: factor
B10: 1990 | D10: 1743 | E10: 3.632470516 | F10: 3.5 | G10: =E10*1000000/(D10*8766) -> 0.2377405398
B11: 1991 | C11: =D11-D10 -> 240 | D11: 1983 | E11: 4.086106675 | F11: 4.1 | G11: =E11*1000000/(D11*8766) -> 0.2350636741
B12: 1992 | C12: 338 | D12: 2321 | E12: 4.732812019 | F12: 4.6 | G12: =E12*1000000/(D12*8766) -> 0.2326176417
B13: 1993 | C13: 480 | D13: 2801 | E13: 5.696168819 | F13: 5.6 | G13: 0.2319894723
B14: 1994 | C14: 730 | D14: 3531 | E14: 7.125568228 | F14: 7.3 | G14: 0.2302079508
B15: 1995 | C15: 1290 | D15: 4821 | E15: 8.26308304 | F15: 8 | G15: 0.1955255514
B16: 1996 | C16: 1280 | D16: 6100 | E16: 9.179570358 | F16: 9.3 | G16: 0.1716686744
B17: 1997 | C17: 1530 | D17: 7600 | E17: 11.99289586 | F17: 12.1 | G17: 0.1800151282
B18: 1998 | C18: 2520 | D18: 10200 | E18: 15.91878946 | F18: 16.1 | G18: 0.1780362347
B19: 1999 | C19: 3440 | D19: 13600 | E19: 21.23784874 | F19: 21.2 | G19: 0.1781435689
B20: 2000 | C20: 3760 | D20: 17400 | E20: 31.50290163 | F20: 31.4 | G20: 0.2065379407
B21: 2001 | C21: 6500 | D21: 23900 | E21: 38.63928243 | F21: 38.4 | G21: 0.1844292012
B22: 2002 | C22: 7270 | D22: 31100 | E22: 52.97929141 | F22: 52.8 | G22: 0.1943319865
B23: 2003 | C23: 8133 | D23: 39431 | E23: 63.391006 | F23: 64.3 | G23: 0.1833953781
B24: 2004 | C24: 8207 | D24: 47620 | E24: 85.58007667 | F24: 84.1 | G24: 0.205013195
B25: 2005 | C25: 11531 | D25: 59091 | E25: 104.2193111 | F25: 104 | G25: 0.2011988028
B26: 2006 | C26: 15052 | D26: 74006 | E26: 133.0357515 | F26: 131.8 | G26: 0.2050689792
B27: 2007 | C27: 19865 | D27: 93639 | E27: 170.8424246 | F27: 170.6 | G27: 0.208131346
B28: 2008 | C28: 26721 | D28: 120267 | E28: 219.0594312 | F28: 220.3 | G28: 0.2077849134
B29: 2009 | C29: 38708 | D29: 158864 | E29: 277.899072 | F29: 276 | G29: 0.1995538619
B30: 2010 | C30: 38850 | D30: 197686 | E30: 341.417277 | F30: 341.5 | G30: 0.1970190016
B31: 2011 | C31: 40629 | D31: 238035 | E31: 436.540591 | F31: 446.3 | G31: 0.2092099552
B32: 2012 | C32: 44711 | D32: 282430 | E32: 526.8814284 | F32: 520 | G32: 0.2128141978
B33: 2013 | C33: =D33-D32 -> 35675 | D33: 318105 | E33: 644.4102388 | F33: n/a | G33: 0.2310949581
B34: 2014 | C34: =D34-D33 -> 51448 | D34: 369553 | E34: 709.297772 | F34: n/a | G34: =E34*1000000/(D34*8766) -> 0.2189527464
B35: 2015 | C35: 63467 | D35: 432883 | E35: 828.0351756 | F35: n/a | G35: =E35*1000000/(D35*8766) -> 0.2182110752
B36: 2016 | C36: 54642 | D36: 486790 | E36: 959.5295061 | F36: n/a | G36: =E36*1000000/(D36*8766) -> 0.2248615602
B38: Note: Data in bold from respective sources; other data extrapolated/interpolated.
B40: Source Data
B41: Capacity | C41: European Wind Energy Association
C42: The Current Status of the Wind Industry, 2005
B44: Capacity | C44: Global Wind Energy Council (GWEC)
C45: Global Wind Report, Annual Market Update 2016, p. 15
C46: http://www.gwec.net/publications/global-wind-report-2/global-wind-report-2016/
B48: Generation | C48: BP Statistical Review of World Energy, 2017 Edition
C49: http://www.bp.com/en/global/corporate/energy-economics/statistical-review-of-world-energy.html
B51: Generation | C51: EIA International Energy Statistics, not available after 2012
C52: http://www.eia.gov/cfapps/ipdbproject/iedindex3.cfm?tid=6&pid=37&aid=12&cid=regions&syid=1990&eyid=2012&unit=BKWH

Sheet PV
B2: This sheet presents RMI's source data for solar PV capacity and output.
B3: Capacity in the summary sheet comes from EPIA since 2000; generation in the summary sheet comes from BP.
B4: Actual capacity factors are much higher than the inferred number shown in column G due to timing in installation; see "Capacity (GW)" tab.
B6: SOLAR PHOTOVOLTAIC (PV)
C7: Manufactured | D7: Installed | E7: Net annual | F7: Cumulative | G7: (BP) Electrical | H7: Inferred
C8: capacity | D8: capacity | E8: additions | F8: capacity | G8: output | H8: capacity
C9: (MW) | D9: (MW) | E9: (MW) | F9: (MW) | G9: (TWh/y) | H9: factor*
B10: 1990 | C10: 47 | D10: =$C10*0.3834+40*(1-0.3834) -> 42.6838 | E10: =$C10*0.3834+40*(1-0.3834) -> 42.6838 | F10: =268 -> 268 | G10: 0.3865626263 | H10: =G10*1000000/(8766*F10) -> 0.1645445881
B11: 1991 | C11: 55 | D11: =$C11*0.3834+$C10*(1-0.3834) -> 50.0672 | E11: =$C11*0.3834+$C10*(1-0.3834) -> 50.0672 | F11: =F10+D11 -> 318.0672 | G11: 0.5064604487 | H11: =G11*1000000/(8766*F11) -> 0.1816457259
B12: 1992 | C12: 58 | D12: =$C12*0.3834+$C11*(1-0.3834) -> 56.1502 | E12: 56.1502 | F12: 374.2174 | G12: 0.4688133923 | H12: 0.1429139313
B13: 1993 | C13: 60 | D13: 58.7668 | E13: 58.7668 | F13: 432.9842 | G13: 0.5567955038 | H13: 0.1466973283
B14: 1994 | C14: 69 | D14: 63.4506 | E14: 63.4506 | F14: 496.4348 | G14: 0.6009917031 | H14: 0.1381035341
B15: 1995 | C15: 78 | D15: 72.4506 | E15: 72.4506 | F15: 568.8854 | G15: 0.6415996381 | H15: =G15*1000000/(8766*F15) -> 0.128658314
B16: 1996 | C16: 89 | D16: 82.2174 | E16: 82.2174 | F16: 651.1028 | G16: 0.7049251433 | H16: 0.1235071135
B17: 1997 | C17: 126 | D17: 103.1858 | E17: 103.1858 | F17: 754.2886 | G17: 0.7570716606 | H17: 0.1144980207
B18: 1998 | C18: 155 | D18: 137.1186 | E18: 137.1186 | F18: 891.4072 | G18: 0.879724855 | H18: 0.1125820775
B19: 1999 | C19: 201 | D19: 172.6364 | E19: 172.6364 | F19: 1064.0436 | G19: 0.9645570474 | H19: 0.1034110692
B20: 2000 | C20: 288 | D20: 234.3558 | E20: 234.3558 | F20: 1288 | G20: 1.150853936 | H20: 0.1019302004
B21: 2001 | E21: =F21-F20 -> 327 | F21: 1615 | G21: 1.425708425 | H21: 0.1007063192
B22: 2002 | E22: 454 | F22: 2069 | G22: 1.807259555 | H22: 0.09964570233
B23: 2003 | E23: 566 | F23: 2635 | G23: 2.294241983 | H23: 0.09932467141
B24: 2004 | E24: 1088 | F24: 3723 | G24: 3.009475065 | H24: 0.0922138696
B25: 2005 | E25: 1389 | F25: 5112 | G25: 4.229917053 | H25: 0.0943929458
B26: 2006 | E26: 1548 | F26: 6660 | G26: 5.782574851 | H26: 0.09904796738
B27: 2007 | E27: 2523 | F27: 9183 | G27: 7.702112602 | H27: 0.095680583
B28: 2008 | E28: 6661 | F28: 15844 | G28: 12.5912305 | H28: 0.09065711081
B29: 2009 | E29: 7341 | F29: 23185 | G29: 20.91791861 | H29: 0.1029223994
B30: 2010 | E30: 17151 | F30: 40336 | G30: 33.81625431 | H30: 0.09563815873
B31: 2011 | E31: 30133 | F31: 70469 | G31: 64.69511238 | H31: 0.1047301913
B32: 2012 | E32: 30035 | F32: 100504 | G32: 100.0339074 | H32: =G32*1000000/(8766*F32) -> 0.1135435372
B33: 2013 | E33: 38352 | F33: 138856 | G33: 137.5611538 | H33: =G33*1000000/(8766*F33) -> 0.1130133355
B34: 2014 | E34: 39535 | F34: 178391 | G34: 196.3329875 | H34: 0.125550622
B35: 2015 | E35: =F35-F34 -> 51509 | F35: 229900 | G35: 256.1909288 | H35: =G35*1000000/(8766*F35) -> 0.1271227592
B36: 2016 | E36: 76600 | F36: 306500 | G36: 333.0524925 | H36: =G36*1000000/(8766*F36) -> 0.1239597646
B38: Note: Data in bold from respective sources; other data extrapolated/interpolated
B39: *This capacity factor is calculated for a 24-hour timespan; hence the capacity factor would be significantly higher during the day
B41: Source Data
B42: Capacity | D42: Worldwatch Vital Signs 2005.
D43: http://www.worldwatch.org/pubs/vs/2005/
B45: Capacity | D45: EPIA Global Market Outlook 2017–2021
D46: http://www.solarpowereurope.org/reports/global-market-outlook-2017/
B48: Generation | D48: BP Statistical Review of World Energy, 2017 Edition
D49: http://www.bp.com/en/global/corporate/energy-economics/statistical-review-of-world-energy.html

Sheet Hydro
B2: This sheet presents RMI's source data for hydro capacity and output.
B3: Capacity in the summary sheet comes from BNEF; generation in the summary sheet comes from BNEF multiplied by a nominal 0.40 capacity factor.
B5: SMALL HYDRO (≤50 MW) | H5: LARGE HYDRO (>50 MW)
C6: Capacity | D6: Cumulative | E6: Capacity | F6: Small hydro generation | I6: Cumulative | J6: Total generation | K6: Small hydro | L6: Large hydro
C7: additions | D7: capacity | E7: factor | F7: (Capacity * CF) | I7: capacity | K7: generation | L7: generation
C8: (GW) | D8: (GW) | F8: (TWh/y) | I8: (GW) | J8: (TWh/y) | K8: (TWh/y) | L8: (TWh/y)
B9: 2000 | D9: 103.689 | E9: 0.4 | F9: =D9*8766*E9/1000 -> 363.5751096 | H9: 2000 | I9: 637.73 | J9: 2656.535014 | K9: =F9 -> 363.5751096 | L9: =J9-K9 -> 2292.959904
B10: 2001 | C10: =D10-D9 -> 1.711 | D10: 105.4 | E10: 0.4 | F10: =(D9+C10/4)*8766*E10/1000 -> 365.0749722 | H10: 2001 | I10: 644.374 | J10: 2587.486842 | K10: 365.0749722 | L10: =J10-K10 -> 2222.41187
B11: 2002 | C11: 2.626 | D11: 108.026 | E11: 0.4 | F11: 371.8765116 | H11: 2002 | I11: 651.361 | J11: 2635.381864 | K11: 371.8765116 | L11: 2263.505352
B12: 2003 | C12: 2.857 | D12: 110.883 | E12: 0.4 | F12: 381.2868126 | H12: 2003 | I12: 659.091 | J12: 2626.7063 | K12: 381.2868126 | L12: 2245.419488
B13: 2004 | C13: 4.646 | D13: 115.529 | E13: 0.4 | F13: 392.8728348 | H13: 2004 | I13: 663.855 | J13: 2803.72113 | K13: 392.8728348 | L13: 2410.848296
B14: 2005 | C14: 5.11 | D14: 120.639 | E14: 0.4 | F14: 409.5703116 | H14: 2005 | I14: 674.738 | J14: 2920.187177 | K14: 409.5703116 | L14: 2510.616866
B15: 2006 | C15: 5.815 | D15: 126.454 | E15: 0.4 | F15: 428.1060186 | H15: 2006 | I15: 684.742 | J15: 3038.340122 | K15: 428.1060186 | L15: 2610.234103
B16: 2007 | C16: 5.325 | D16: 131.779 | E16: 0.4 | F16: 448.0662006 | H16: 2007 | I16: 705.331 | J16: 3083.731738 | K16: 448.0662006 | L16: 2635.665537
B17: 2008 | C17: 5.533 | D17: 137.312 | E17: 0.4 | F17: 466.9201134 | H17: 2008 | I17: 733.39 | J17: 3267.050118 | K17: 466.9201134 | L17: 2800.130005
B18: 2009 | C18: 5.34 | D18: 142.652 | E18: 0.4 | F18: 486.1518408 | H18: 2009 | I18: 758.837 | J18: 3255.669347 | K18: 486.1518408 | L18: 2769.517506
B19: 2010 | C19: 6.19 | D19: 148.842 | E19: 0.4 | F19: 505.6211268 | H19: 2010 | I19: 777.524 | J19: 3441.255339 | K19: 505.6211268 | L19: 2935.634213
B20: 2011 | C20: 4.778 | D20: 153.62 | E20: 0.4 | F20: 526.0879836 | H20: 2011 | I20: 803.825 | J20: 3501.648542 | K20: 526.0879836 | L20: 2975.560558
B21: 2012 | C21: 5.997 | D21: 159.617 | E21: 0.4 | F21: 543.9101382 | H21: 2012 | I21: 835.595 | J21: 3677.295119 | K21: 543.9101382 | L21: 3133.38498
B22: 2013 | C22: 7.294 | D22: 166.911 | E22: 0.4 | F22: 566.0749692 | H22: 2013 | I22: 870.662 | J22: 3797.195979 | K22: 566.0749692 | L22: 3231.121009
B23: 2014 | C23: 4.396 | D23: 171.307 | E23: 0.4 | F23: =(D22+C23/4)*8766*E23/1000 -> 589.110264 | H23: 2014 | I23: 900.451 | J23: 3886.057621 | K23: =F23 -> 589.110264 | L23: =J23-K23 -> 3296.947357
B24: 2015 | C24: =D24-D23 -> 3.513 | D24: 174.82 | E24: 0.4 | F24: =(D23+C24/4)*8766*E24/1000 -> 603.7503606 | H24: 2015 | I24: 925.862 | J24: 3903.281964 | K24: =F24 -> 603.7503606 | L24: =J24-K24 -> 3299.531604
B25: 2016 | C25: 3.106 | D25: 177.926 | E25: 0.4 | F25: =(D24+C25/4)*8766*E25/1000 -> 615.7115676 | H25: 2016 | I25: 937.137 | J25: 4022.937769 | K25: =F25 -> 615.7115676 | L25: =J25-K25 -> 3407.226201
B27: Note: Data in bold from respective sources; other data extrapolated/interpolated.
B29: Source Data
B30: Capacity | C30: Bloomberg New Energy Finance (BNEF), 2017 database (Market Sizing, Generation Capacity, Renewable Energy)
B32: Capacity | C32: European Association for Small Hydro
B33: factor | C33: http://www.esha.be/about/about-small-hydropower/small-hydropower-in-figures.html
B35: Generation | C35: BP Statistical Review of World Energy, 2017 Edition
C36: http://www.bp.com/en/global/corporate/energy-economics/statistical-review-of-world-energy.html
B39: Assumptions:
B40: Small hydro has a capacity factor of 0.4
B41: (This value is conservative; other reports give a CF of 0.5 (http://www.akamaiuniversity.us/PJST10_2_535.pdf, http://www.british-hydro.org/Useful_Information/A%20Guide%20to%20UK%20mini-hydro%20development%20v3.pdf))

Sheet Geothermal
B2: This sheet presents RMI's source data for geothermal capacity and output.
B4: GEOTHERMAL
C5: Capacity | D5: Cumulative | E5: Cumulative | F5: Inferred | G5: Electrical | H5: (BNEF) Electrical
C6: additions | D6: capacity | E6: capacity (BNEF) | F6: capacity factor | G6: output | H6: output
C7: (GW) | D7: (GW) | E7: (GW) | G7: (TWh/y) | H7: (TWh/y)
B8: 2000 | C8: 0.285 | D8: 8.1723 | E8: 7.779 | F8: 0.71 | G8: =(D8-C8+C8/4)*F8*8766/10^3 -> 49.532901 | H8: =(E8)*F8*8766/10^3 -> 48.41540694
B9: 2001 | C9: =D9-D8 -> 0.0611 | D9: =D8+(D$11-D$8)/3 -> 8.2334 | E9: 7.906 | F9: =F8+(F$18-F$8)/10 -> 0.716 | G9: =(D9-C9+C9/4)*F9*8766/10^3 -> 51.38895423 | H9: =(E8+(E9-E8)/4)/1000*8766*F9 -> 49.0238287
B10: 2002 | C10: 0.0611 | D10: =D9+(D$11-D$8)/3 -> 8.2945 | E10: 8.128 | F10: =F9+(F$18-F$8)/10 -> 0.722 | G10: =(D10-C10+C10/4)*F10*8766/10^3 -> 52.20629301 | H10: =(E9+(E10-E9)/4)/1000*8766*F10 -> 50.3887475
B11: 2003 | C11: 0.0611 | D11: 8.3556 | E11: 8.284 | F11: 0.728 | G11: 53.03005901 | H11: 52.11891922
B12: 2004 | C12: 0.5239 | D12: 8.8795 | E12: 8.21 | F12: 0.734 | G12: 54.60469427 | H12: 53.18224378
B13: 2005 | C13: 0.4768 | D13: 9.3563 | E13: 8.361 | F13: 0.74 | G13: 58.37312711 | H13: 53.50183461
B14: 2006 | C14: 0.319 | D14: 9.6753 | E14: 8.877 | F14: 0.746 | G14: 61.70644507 | H14: 55.51981164
B15: 2007 | C15: 0.3702 | D15: 10.0455 | E15: 9.283 | F15: 0.752 | G15: 64.38997977 | H15: 59.18655931
B16: 2008 | C16: 0.4242 | D16: 10.4697 | E16: 9.491 | F16: 0.758 | G16: 67.45327337 | H16: 62.02760238
B17: 2009 | C17: 0.405 | D17: 11 | E17: 9.762 | F17: 0.764 | G17: 71.63518221 | H17: 64.01708991
B18: 2010 | C18: 0.24 | D18: 11 | E18: 10.248 | F18: 0.77 | G18: 67.2 | H18: 66.71184597
B19: 2011 | C19: 0.136 | D19: 11.2 | E19: 10.26 | F19: =(G19*1000)/(D19*8766) -> 0.702796519 | G19: 69 | H19: =(E18+(E19-E18)/4)/1000*8766*F19 -> 63.15348214
B20: 2012 | C20: 0.3 | D20: 11.7 | E20: 10.913 | F20: 0.7020130223 | G20: 72 | H20: 64.14307692
B21: 2013 | C21: 0.53 | D21: 12 | E21: 11.516 | F21: 0.7224884022 | G21: 76 | H21: =(E20+(E21-E20)/4)/1000*8766*F21 -> 70.07041667
B22: 2014 | C22: 0.64 | D22: 12.8 | E22: 12.457 | F22: 0.6595083276 | G22: 74 | H22: =(E21+(E22-E21)/4)/1000*8766*F22 -> 67.93691406
B23: 2015 | C23: 0.315 | D23: 13.2 | E23: 13.209 | F23: 0.6481654326 | G23: 75 | H23: =(E22+(E23-E22)/4)/1000*8766*F23 -> 71.84659091
B24: 2016 | C24: 0.447 | D24: 13.5 | E24: 14.067 | F24: 0.6591122265 | G24: 78 | H24: =(E23+(E24-E23)/4)/1000*8766*F24 -> 77.558
B26: Note: Data in bold from respective sources; other data extrapolated.
B28: SOURCE DATA
B29: Capacity | C29: Navigant Consulting
C30: State of Renewable Energy in America, Lisa Frantzis, 2003
C31: Presentation to ACRE 2nd Annual Conference, July 8th 2003
C32: Figure: Estimated Annual Worldwide Renewable Energy Capacity Additions
B34: Capacity | C34: International Geothermal Association, conference papers presented at various
C35: IGA workshops and congresses.
C36: Cited in: BP Statistical Review of World Energy 2009
C37: 2010: International Geothermal Association
B39: Capacity | C39: REN21 Global Status Report 2005-2017
B40: and output | C40: http://www.ren21.net/status-of-renewables/global-status-report/
B42: Capacity | C42: Bloomberg New Energy Finance (BNEF), 2017 database
B44: Capacity | C44: Ingvar B. Fridleifsson (United Nations University Geothermal Training Programme, Iceland)
B45: factor | C45: The Possible Role and Contribution of Geothermal Energy to the Mitigation of Climate Change
C46: Presented to the International Panel on Climate Change, Feb 2008
B49: Assumptions:
B50: For years 2000–2009 geothermal electrical output data is calculated based on the capacity factor, assuming last year's capacity plus one quarter of the capacity additions
B51: When electrical output is based on capacity, we assume the previous year's capacity plus one quarter of this year's capacity. For instance, 2014 generation is based on 2013 capacity plus 25% of the 2014 capacity additions multiplied by the 2014 capacity factor.

Sheet Biomass & Waste
B2: This sheet presents RMI's source data for biomass capacity and output.
B4: BIOMASS & WASTE
C5: Capacity | D5: Cumulative | E5: Cumulative | F5: Capacity | G5: Electrical
C6: additions | D6: capacity (REN21) | E6: capacity (BNEF) | F6: factor | G6: output (BNEF)*
C7: (GW) | D7: (GW) | E7: (GW) | G7: (TWh/y)
B8: 2000 | C8: 1.4 | D8: =D9-C9 -> 30.81 | E8: 38.664 | F8: 0.7 | G8: =E8*F8*8766/1000 -> 237.2500368
B9: 2001 | C9: 1.54 | D9: =D10-C10 -> 32.35 | E9: 39.406 | F9: 0.7 | G9: =(E8+(E9-E8)/4)*$F9*8766/10^3 -> 238.3883019
B10: 2002 | C10: 1.65 | D10: 34 | E10: 41.405 | F10: 0.7 | G10: 244.8696631
B11: 2003 | C11: =D11-D10 -> 2.414282912 | D11: =D10*(D12/D10)^(1/2) -> 36.41428291 | E11: 43.492 | F11: 0.7 | G11: 257.2709233
B12: 2004 | C12: =D12-D11 -> 2.585717088 | D12: 39 | E12: 45.084 | F12: 0.7 | G12: 269.317818
B13: 2005 | C13: =D13-D12 -> 2 | D13: 41 | E13: 51.053 | F13: 0.7 | G13: 285.8011853 | H13: 58.57.
B14: 2006 | C14: =D14-D13 -> 3 | D14: 44 | E14: 53.826 | F14: 0.7 | G14: 317.5253392
B15: 2007 | C15: 4 | D15: 48 | E15: 56.346 | F15: 0.7 | G15: 334.1529072
B16: 2008 | C16: =D16-D15 -> 4 | D16: 52 | E16: 59.286 | F16: 0.7 | G16: 350.2604322
B17: 2009 | C17: 2 | D17: 54 | E17: 64.884 | F17: 0.7 | G17: =(E16+(E17-E16)/4)*$F17*8766/10^3 -> 372.3783651
B18: 2010 | C18: 3 | D18: 62 | E18: 72.289 | F18: 0.7 | G18: 409.500841
B19: 2011 | C19: 5.9 | D19: 72 | E19: 77.538 | F19: 0.7 | G19: 451.6319902
B20: 2012 | C20: 9 | D20: 83 | E20: 84.861 | F20: 0.7 | G20: 487.0225238
B21: 2013 | C21: =D21-D20 -> 5 | D21: 88 | E21: 92.614 | F21: 0.7 | G21: =(E20+(E21-E20)/4)*$F21*8766/10^3 -> 532.6175579
B22: 2014 | C22: =D22-D21 -> 5 | D22: 93 | E22: 98.447 | F22: 0.7 | G22: =(E21+(E22-E21)/4)*$F22*8766/10^3 -> 577.2461404
B23: 2015 | C23: =D23-D22 -> 13 | D23: 106 | E23: 103.271 | F23: 0.7 | G23: =(E22+(E23-E22)/4)*$F23*8766/10^3 -> 611.4907386
B24: 2016 | C24: =D24-D23 -> 6 | D24: 112 | E24: 106.71 | F24: 0.7 | G24: 638.9671081
B26: Note: Data in bold from respective sources; other data extrapolated.
B28: Source Data
B29: Capacity | C29: IEA World Energy Outlook 2004, page 432
C30: http://www.iea.org/textbase/nppdf/free/2004/weo2004.pdf
B32: Capacity | C32: REN21 Global Status Report 2005-2017
C33: http://www.ren21.net/status-of-renewables/global-status-report/
B35: Capacity | C35: Bloomberg New Energy Finance (BNEF), 2017 database
B37: Capacity Factor | C37: IEA 2004 World Energy Outlook, page 432
C38: http://www.iea.org/textbase/nppdf/free/2004/weo2004.pdf
B40: *We no longer include the data from BP Statistical Review of World Energy for the electrical output for biomass & waste because in BP's 2017 edition, biomass is grouped with geothermal; additionally, BP's value for electrical output by "Geothermal, Biomass, and Other" is significantly lower than the BNEF value for biomass alone, so we believe that the BNEF value is more authoritative.

Sheet Cogeneration (CHP)
B2: This sheet presents RMI's source data for cogeneration capacity and output.
C4: Cumulative | D4: >2009 capacity | E4: ≤2009 capacity | F4: Non-biomass | G4: Non-biomas | H4: Capacity | I4: Electrical output | J4: Electrical output
C5: capacity | D5: additions | E5: additions | F5: percentage | G5: cogeneration | H5: factor | I5: cogeneration | J5: non-biomass cogen
C6: (GW) | D6: (GW) | E6: (GW) | G6: (GW) | I6: (TWh/y) | J6: (TWh/y)
B7: 1999 | C7: =C8-E8 -> 215.8104635 | F7: =F8-(F$20-F$12)/8 -> 0.97875 | G7: =C7*F7 -> 211.2244911
B8: 2000 | C8: =C9-E9 -> 228.9639442 | E8: 13.15348072 | F8: =F9-(F$20-F$12)/8 -> 0.975 | G8: 223.2398456 | H8: 0.828 | I8: =(C8-E8+E8/4)*8766*H8/10^3 -> 1590.273671 | J8: =(G7+(G8-G7)/4)*8766*H8/1000 -> 1554.922346
B9: 2001 | C9: 243.9303156 | E9: 14.96637139 | F9: =F10-(F$20-F$12)/8 -> 0.97125 | G9: 236.917319 | H9: 0.828 | I9: 1689.034499 | J9: =(G8+(G9-G8)/4)*8766*H9/1000 -> 1645.148786
B10: 2002 | C10: 261.4303156 | E10: 17.5 | F10: =F11-(F$20-F$12)/8 -> 0.9675 | G10: 252.9338303 | H10: 0.828 | I10: 1802.26156 | J10: 1748.66761
B11: 2003 | C11: 274.3523156 | E11: 12.922 | F11: =F12-(F$20-F$12)/8 -> 0.96375 | G11: 264.4070441 | H11: 0.828 | I11: 1920.973835 | J11: 1856.675326
B12: 2004 | C12: 291.2443156 | E12: 16.892 | F12: 0.96 | G12: 279.594543 | H12: 0.828 | I12: 2021.968727 | J12: 1946.690558
B13: 2005 | C13: 309.9853156 | E13: 18.741 | F13: =F12+(F$20-F$12)/8 -> 0.95625 | G13: 296.423458 | H13: 0.828 | I13: 2147.930177 | J13: 2059.903642
B14: 2006 | C14: 330 | E14: 20.01468443 | F14: =F13+(F$20-F$12)/8 -> 0.9525 | G14: 314.325 | H14: 0.828 | I14: 2286.268183 | J14: 2183.998429
B15: 2007 | C15: =C14+E15 -> 357.0116155 | E15: 27.01161554 | F15: 0.94875 | G15: 338.7147702 | H15: 0.828 | I15: 2444.236091 | J15: 2325.705553
B16: 2008 | C16: =C15+E16 -> 383.6498239 | E16: 26.63820838 | F16: 0.945 | G16: 362.5490836 | H16: 0.828 | I16: 2639.615525 | J16: 2501.724643
B17: 2009 | C17: =C16+E17 -> 409.2625354 | E17: 25.61271149 | F17: 0.94125 | G17: 385.2183615 | H17: 0.828 | I17: 2831.10142 | J17: 2672.605971
B18: 2010 | C18: =C17+D18 -> 446.5090932 | D18: ='CHP Source Data 2010–2016'!C25/1000 -> 37.24655777 | F18: 0.9375 | G18: 418.6022748 | H18: 0.828 | I18: =(C18-D18+D18/4)*8766*H18/10^3 -> 3038.115167 | J18: 2856.587582
B19: 2011 | C19: 483.9012707 | D19: ='CHP Source Data 2010–2016'!C48/1000 -> 37.39217756 | F19: 0.93375 | G19: 451.8428115 | H19: 0.828 | I19: 3308.724157 | J19: 3098.636139
B20: 2012 | C20: 520.7935345 | D20: ='CHP Source Data 2010–2016'!C71/1000 -> 36.89226377 | F20: 0.93 | G20: =F20*C20 -> 484.3379871 | H20: 0.828 | I20: 3579.21873 | J20: 3338.551694
B21: 2013 | C21: 564.4795462 | D21: ='CHP Source Data 2010–2016'!C94/1000 -> 43.68601171 | F21: 0.93 | G21: =F21*C21 -> 524.965978 | H21: 0.828 | I21: 3859.319607 | J21: 3589.167234
B22: 2014 | C22: 604.2932304 | D22: ='CHP Source Data 2010–2016'!C117/1000 -> 39.81368422 | F22: 0.93 | G22: =F22*C22 -> 561.9927043 | H22: 0.828 | I22: 4169.376936 | J22: =(G21+(G22-G21)/4)*8766*H22/1000 -> 3877.52055
B23: 2015 | C23: =C22+D23 -> 646.2025298 | D23: ='CHP Source Data 2010–2016'!C139/1000 -> 41.90929941 | F23: 0.93 | G23: =F23*C23 -> 600.9683527 | H23: 0.828 | I23: =(C23-D23+D23/4)*8766*H23/10^3 -> 4462.157153 | J23: 4149.806153
B24: 2016 | C24: 679.6889456 | D24: ='CHP Source Data 2010–2016'!C161/1000 -> 33.48641575 | F24: 0.93 | G24: =F24*C24 -> 632.1107194 | H24: 0.828 | I24: 4751.061397 | J24: 4418.487099
B26: Note: Data in bold from respective sources; other data extrapolated.
B28: Source Data
B29: Historical | C29: IEA, Combined Heat and Power: Evaluating the Benefits of Greater Global Investment
C30: http://www.localpower.org/documents/reporto_iea_chpwademodel.pdf
C31: P. 18
B33: Capacity | C33: RMI analysis employing the World Alliance For Decentralized Energy (WADE http://www.localpower.org/)
C34: methodology, based on Diesel and Gas Turbine World Wide Power Generation Survey 2007-2010
B36: Capacity | C36: WADE, World Survey of Decentralized Energy (2006)
C37: http://www.localpower.org/pages/wadereports.htm
B39: Capacity | C39: Diesel & Gas Turbine Worldwide, Annual Power Generation Order Survey
C40: http://www.dieselgasturbine.com/Market-Surveys/
B42: Capacity Factor | C42: Brown, Michael. Director of WADE. Personal Communications. June 2005. 7,250 operational hours per year. Confirmed in June 2014 w/ Brent Haight.

Sheet CHP Source Data 2010–2016
B2: This sheet transcribes cogeneration data from the 2010–2016 Diesel and Gas Turbine Worldwide Power Generation Surveys and illustrates the non-proprietary data that underlie RMI's cogeneration analysis.
B4: Diesel and Gas Turbine Worldwide Power Generation Survey
B5: http://dieselgasturbine.com/market-surveys/
B7: 2010 reciprocating engines | H7: 2010 gas turbine | N7: 2010 steam turbine (all continuous)
B9: Output range (MW) | C9: Total output (MWe) | D9: % Counted | E9: % Continuous | F9: MW counted | H9: Output range | I9: Total output (MWe) | J9: % Counted | K9: % Continuous | L9: MW counted | N9: =12812-((1/23)*398) -> 12794.69565 | O9: MW
B10: 0.50-1.00 | C10: 13457 | D10: 1 | E10: =7575/17674 -> 0.4285956773 | F10: =E10*D10*C10 -> 5767.612029 | H10: 1.00-2.00 | I10: 100 | J10: 1 | K10: =19/(61+19) -> 0.2375 | L10: =K10*J10*I10 -> 23.75
B11: 1.01-2.00 | C11: 14361 | D11: 1 | E11: =4452/9949 -> 0.447482159 | F11: =E11*D11*C11 -> 6426.291286 | H11: 2.01-3.50 | I11: 114 | J11: 1 | K11: =10/40 -> 0.25 | L11: =K11*J11*I11 -> 28.5
B12: 2.01-3.50 | C12: 4501 | D12: 1 | E12: =760/1791 -> 0.4243439419 | F12: 1909.972083 | H12: 3.51-5.00 | I12: 272 | J12: 1 | K12: =34/64 -> 0.53125 | L12: 144.5
B13: 3.51-5.00 | C13: 634 | D13: 1 | E13: =115/149 -> 0.7718120805 | F13: 489.3288591 | H13: 5.01-7.50 | I13: 509 | J13: 1 | K13: =88/88 -> 1 | L13: 509
B14: 5.01-7.50 | C14: 542 | D14: 1 | E14: =62/92 -> 0.6739130435 | F14: 365.2608696 | H14: 7.51-10.00 | I14: 403 | J14: 1 | K14: =50/50 -> 1 | L14: 403
B15: 7.51-10.00 | C15: 3155 | D15: 1 | E15: =206/347 -> 0.5936599424 | F15: 1872.997118 | H15: 10.01-15.00 | I15: 1849 | J15: 1 | K15: =129/131 -> 0.9847328244 | L15: 1820.770992
B16: 10.01-15.00 | C16: 439 | D16: 1 | E16: =34/34 -> 1 | F16: 439 | H16: 15.01-20.00 | I16: 64 | J16: 1 | K16: =4/4 -> 1 | L16: 64
B17: 15.01-20.00 | C17: 1127 | D17: 1 | E17: =64/64 -> 1 | F17: 1127 | H17: 20.01-30.00 | I17: 503 | J17: 1 | K17: =12/13 -> 0.9230769231 | L17: 464.3076923
B18: 20.01-30.00 | C18: 367 | D18: 0.6 | E18: =0 -> 0 | F18: 0 | H18: 30.01-60.00 | I18: 1843 | J18: 0.75 | K18: =49/49 -> 1 | L18: 1382.25
B19: 30.01 and above | C19: 43 | D19: 0.6 | E19: =1 -> 1 | F19: 25.8 | H19: 60.01-120.00 | I19: 3320 | J19: 0.1 | K19: =31/39 -> 0.7948717949 | L19: 263.8974359
H20: 120.01-180.00 | I20: 9061 | J20: 0.05 | K20: =29/65 -> 0.4461538462 | L20: 202.13
H21: 180.01 and above | I21: 14916 | J21: 0.05 | K21: =62/64 -> 0.96875 | L21: 722.49375
E23: SUM | F23: =SUM(F10:F19) -> 18423.26224 | K23: SUM | L23: =SUM(L10:L21) -> 6028.599871
B25: 2010 TOTAL | C25: =F23+L23+N9 -> 37246.55777 | D25: MW
B30: 2011 reciprocating engines | H30: 2011 gas turbine | N30: 2011 steam turbine (all continuous)
B32: Output range | C32: Total output (MWe) | D32: % Counted | E32: % Continuous | F32: MW counted | H32: Output range | I32: Total output (MWe) | J32: % Counted | K32: % Continuous | L32: MW counted | N32: =6773 -> 6773 | O32: MW
B33: 0.50-1.00 | C33: 13100 | D33: 1 | E33: =7570/13100 -> 0.5778625954 | F33: =E33*D33*C33 -> 7570 | H33: 1.00-2.00 | I33: 161 | J33: 1 | K33: =24/118 -> 0.2033898305 | L33: =K33*J33*I33 -> 32.74576271
B34: 1.01-2.00 | C34: 21231 | D34: 1 | E34: =6237/15052 -> 0.4143635397 | F34: =E34*D34*C34 -> 8797.352312 | H34: 2.01-3.50 | I34: 152 | J34: 1 | K34: =12/54 -> 0.2222222222 | L34: =K34*J34*I34 -> 33.77777778
B35: 2.01-3.50 | C35: 6329 | D35: 1 | E35: =882/2556 -> 0.3450704225 | F35: 2183.950704 | H35: 3.51-5.00 | I35: 274 | J35: 1 | K35: =29/67 -> 0.4328358209 | L35: 118.5970149
B36: 3.51-5.00 | C36: 1826 | D36: 1 | E36: =421/427 -> 0.9859484778 | F36: 1800.34192 | H36: 5.01-7.50 | I36: 278 | J36: 1 | K36: =44/47 -> 0.9361702128 | L36: 260.2553191
B37: 5.01-7.50 | C37: 616 | D37: 1 | E37: =81/99 -> 0.8181818182 | F37: 504 | H37: 7.51-10.00 | I37: 353 | J37: 1 | K37: =44/45 -> 0.9777777778 | L37: 345.1555556
B38: 7.51-10.00 | C38: 2562 | D38: 1 | E38: =248/279 -> 0.8888888889 | F38: 2277.333333 | H38: 10.01-15.00 | I38: 1176 | J38: 1 | K38: =1 -> 1 | L38: 1176
B39: 10.01-15.00 | C39: 168 | D39: 1 | E39: =13/13 -> 1 | F39: 168 | H39: 15.01-20.00 | I39: 81 | J39: 1 | K39: =1 -> 1 | L39: 81
B40: 15.01-20.00 | C40: 1655 | D40: 1 | E40: =1 -> 1 | F40: 1655 | H40: 20.01-30.00 | I40: 232 | J40: 1 | K40: =9/9 -> 1 | L40: 232
B41: 20.01-30.00 | C41: 92 | D41: 0.6 | E41: 1 | F41: 55.2 | H41: 30.01-60.00 | I41: 3549 | J41: 0.75 | K41: =77/98 -> 0.7857142857 | L41: 2091.375
B42: 30.01 and above | C42: 81 | D42: 0.6 | E42: =1 -> 1 | F42: 48.6 | H42: 60.01-120.00 | I42: 5484 | J42: 0.1 | K42: =51/67 -> 0.7611940299 | L42: 417.438806
H43: 120.01-180.00 | I43: 5617 | J43: 0.05 | K43: =26/37 -> 0.7027027027 | L43: 197.3540541
H44: 180.01 and above | I44: 11474 | J44: 0.05 | K44: =1 -> 1 | L44: 573.7
E46: SUM | F46: =SUM(F33:F42) -> 25059.77827 | K46: SUM | L46: =SUM(L33:L44) -> 5559.39929
B48: 2011 TOTAL | C48: =F46+L46+N32 -> 37392.17756 | D48: MW
B53: 2012 reciprocating engines | H53: 2012 gas turbine | N53: 2012 steam turbine (all continuous)
B55: Output range | C55: Total output (MWe) | D55: % Counted | E55: % Continuous | F55: MW counted | H55: Output range | I55: Total output (MWe) | J55: % Counted | K55: % Continuous | L55: MW counted | N55: 11895 | O55: MW
B56: 0.50-1.00 | C56: 13280 | D56: 1 | E56: =7991/17636 -> 0.4531072806 | F56: =E56*D56*C56 -> 6017.264686 | H56: 1.00-2.00 | I56: 179 | J56: 1 | K56: =34/130 -> 0.2615384615 | L56: =K56*J56*I56 -> 46.81538462
B57: 1.01-2.00 | C57: 16097 | D57: 1 | E57: =6307/11125 -> 0.5669213483 | F57: =E57*D57*C57 -> 9125.732944 | H57: 2.01-3.50 | I57: 91 | J57: 1 | K57: =6/31 -> 0.1935483871 | L57: =K57*J57*I57 -> 17.61290323
B58: 2.01-3.50 | C58: 6035 | D58: 1 | E58: =1187/2428 -> 0.4888797364 | F58: 2950.389209 | H58: 3.51-5.00 | I58: 283 | J58: 1 | K58: =31/68 -> 0.4558823529 | L58: 129.0147059
B59: 3.51-5.00 | C59: 546 | D59: 1 | E59: =96/129 -> 0.7441860465 | F59: 406.3255814 | H59: 5.01-7.50 | I59: 410 | J59: 1 | K59: =65/68 -> 0.9558823529 | L59: 391.9117647
B60: 5.01-7.50 | C60: 473 | D60: 1 | E60: =45/83 -> 0.5421686747 | F60: 256.4457831 | H60: 7.51-10.00 | I60: 107 | J60: 1 | K60: =1 -> 1 | L60: 107
B61: 7.51-10.00 | C61: 1627 | D61: 1 | E61: =131/178 -> 0.7359550562 | F61: 1197.398876 | H61: 10.01-15.00 | I61: 829 | J61: 1 | K61: =1 -> 1 | L61: 829
B62: 10.01-15.00 | C62: 35 | D62: 1 | E62: =3/3 -> 1 | F62: 35 | H62: 15.01-20.00 | I62: 32 | J62: 1 | K62: =1 -> 1 | L62: 32
B63: 15.01-20.00 | C63: 2009 | D63: 1 | E63: =113/113 -> 1 | F63: 2009 | H63: 20.01-30.00 | I63: 71 | J63: 1 | K63: =1 -> 1 | L63: 71
B64: 20.01-30.00 | C64: 0 | D64: 0.6 | E64: =0 -> 0 | F64: 0 | H64: 30.01-60.00 | I64: 1632 | J64: 0.75 | K64: =47/49 -> 0.9591836735 | L64: 1174.040816
B65: 30.01 and above | C65: 0 | D65: 0.6 | E65: =1 -> 1 | F65: 0 | H65: 60.01-120.00 | I65: 611 | J65: 0.1 | K65: =8/9 -> 0.8888888889 | L65: 54.31111111
H66: 120.01-180.00 | I66: 810 | J66: 0.05 | K66: =1 -> 1 | L66: 40.5
H67: 180.01 and above | I67: 2130 | J67: 0.05 | K67: =1 -> 1 | L67: 106.5
E69: SUM | F69: =SUM(F56:F65) -> 21997.55708 | K69: SUM | L69: =SUM(L56:L67) -> 2999.706686
B71: 2012 TOTAL | C71: =F69+L69+N55 -> 36892.26377 | D71: MW
B76: 2013 reciprocating engines | H76: 2013 gas turbine | N76: 2013 steam turbine (all continuous)
B78: Output range | C78: Total output (MWe) | D78: % Counted | E78: % Continuous | F78: MW counted | H78: Output range | I78: Total output (MWe) | J78: % Counted | K78: % Continuous | L78: MW counted | N78: =16707 -> 16707 | O78: MW
B79: 0.50-1.00 | C79: 13335 | D79: 1 | E79: =8297/18090 -> 0.4586511885 | F79: =E79*D79*C79 -> 6116.113599 | H79: 1.00-2.00 | I79: 158 | J79: 1 | K79: =21/181 -> 0.1160220994 | L79: =K79*J79*I79 -> 18.33149171
B80: 1.01-2.00 | C80: 15407 | D80: 1 | E80: =4820/10635 -> 0.4532204984 | F80: =E80*D80*C80 -> 6982.768218 | H80: 2.01-3.50 | I80: 109 | J80: 1 | K80: =5/40 -> 0.125 | L80: =K80*J80*I80 -> 13.625
B81: 2.01-3.50 | C81: 6260 | D81: 1 | E81: =860/2485 -> 0.3460764588 | F81: 2166.438632 | H81: 3.51-5.00 | I81: 166 | J81: 1 | K81: =15/41 -> 0.3658536585 | L81: 60.73170732
B82: 3.51-5.00 | C82: 834 | D82: 1 | E82: =183/196 -> 0.9336734694 | F82: 778.6836735 | H82: 5.01-7.50 | I82: 295 | J82: 1 | K82: =42/50 -> 0.84 | L82: 247.8
B83: 5.01-7.50 | C83: 1363 | D83: 1 | E83: =103/142 -> 0.7253521127 | F83: 988.6549296 | H83: 7.51-10.00 | I83: 346 | J83: 1 | K83: =1 -> 1 | L83: 346
B84: 7.51-10.00 | C84: 1667 | D84: 1 | E84: =172/179 -> 0.9608938547 | F84: 1601.810056 | H84: 10.01-15.00 | I84: 386 | J84: 1 | K84: =29/30 -> 0.9666666667 | L84: 373.1333333
B85: 10.01-15.00 | C85: 127 | D85: 1 | E85: =3/3 -> 1 | F85: 127 | H85: 15.01-20.00 | I85: 689 | J85: 1 | K85: =43/44 -> 0.9772727273 | L85: 673.3409091
B86: 15.01-20.00 | C86: 1330 | D86: 1 | E86: =113/113 -> 1 | F86: 1330 | H86: 20.01-30.00 | I86: 992 | J86: 1 | K86: =33/40 -> 0.825 | L86: 818.4
B87: 20.01-30.00 | C87: 63 | D87: 0.6 | E87: =3/3 -> 1 | F87: 37.8 | H87: 30.01-60.00 | I87: 6901 | J87: 0.75 | K87: =133/164 -> 0.8109756098 | L87: 4197.407012
B88: 30.01 and above | C88: 0 | D88: 0.6 | E88: =1 -> 1 | F88: 0 | H88: 60.01-120.00 | I88: 1672 | J88: 0.1 | K88: =0 -> 0 | L88: 0
H89: 120.01-180.00 | I89: 5588 | J89: 0.05 | K89: =12/38 -> 0.3157894737 | L89: 88.23157895
H90: 180.01 and above | I90: 21151 | J90: 0.05 | K90: =1/83 -> 0.01204819277 | L90: 12.74156627
E92: SUM | F92: =SUM(F79:F88) -> 20129.26911 | K92: SUM | L92: =SUM(L79:L90) -> 6849.742599
B94: 2013 TOTAL | C94: =F92+L92+N78 -> 43686.01171 | D94: MW
B99: 2014 reciprocating engines | H99: 2014 gas turbine | N99: 2014 steam turbine (all continuous)
B101: Output range | C101: Total output (MWe) | D101: % Counted | E101: % Continuous | F101: MW counted | H101: Output range | I101: Total output (MWe) | J101: % Counted | K101: % Continuous | L101: MW counted | N101: =15062 -> 15062 | O101: MW
B102: 0.50-1.00 | C102: 12746 | D102: 1 | E102: =7905/17417 -> 0.4538669116 | F102: =E102*D102*C102 -> 5784.987656 | H102: 1.00-2.00 | I102: 140 | J102: 1 | K102: 0.1538461538 | L102: =K102*J102*I102 -> 21.53846154
B103: 1.01-2.00 | C103: 16054 | D103: 1 | E103: =6771/11047 -> 0.6129265864 | F103: =E103*D103*C103 -> 9839.923418 | H103: 2.01-3.50 | I103: 104 | J103: 1 | K103: 0.05263157895 | L103: =K103*J103*I103 -> 5.473684211
B104: 2.01-3.50 | C104: 6342 | D104: 1 | E104: =789/2627 -> 0.3003425961 | F104: 1904.772745 | H104: 3.51-5.00 | I104: 220 | J104: 1 | K104: 0.1886792453 | L104: 41.50943396
B105: 3.51-5.00 | C105: 745 | D105: 1 | E105: =168/187 -> 0.8983957219 | F105: 669.3048128 | H105: 5.01-7.50 | I105: 423 | J105: 1 | K105: 0.9275362319 | L105: 392.3478261
B106: 5.01-7.50 | C106: 296 | D106: 1 | E106: =40/67 -> 0.5970149254 | F106: 176.7164179 | H106: 7.51-10.00 | I106: 291 | J106: 1 | K106: 0.9444444444 | L106: 274.8333333
B107: 7.51-10.00 | C107: 1687 | D107: 1 | E107: =157/184 -> 0.8532608696 | F107: 1439.451087 | H107: 10.01-15.00 | I107: 175 | J107: 1 | K107: 0.5714285714 | L107: 100
B108: 10.01-15.00 | C108: 168 | D108: 1 | E108: =12/12 -> 1 | F108: 168 | H108: 15.01-20.00 | I108: 609 | J108: 1 | K108: 1 | L108: 609
B109: 15.01-20.00 | C109: 1076 | D109: 1 | E109: 1 | F109: 1076 | H109: 20.01-30.00 | I109: 239 | J109: 1 | K109: 1 | L109: 239
B110: 20.01-30.00 | C110: 67 | D110: 0.6 | E110: 1 | F110: 40.2 | H110: 30.01-60.00 | I110: 2322 | J110: 0.75 | K110: 0.4423076923 | L110: 770.2788462
B111: 30.01 and above | C111: 47 | D111: 0.6 | E111: 1 | F111: 28.2 | H111: 60.01-120.00 | I111: 804 | J111: 0.1 | K111: 1 | L111: 80.4
H112: 120.01-180.00 | I112: 5890 | J112: 0.05 | K112: 0.9047619048 | L112: 266.452381
H113: 180.01 and above | I113: 27992 | J113: 0.05 | K113: 0.5882352941 | L113: 823.2941176
E115: SUM | F115: =SUM(F102:F111) -> 21127.55614 | K115: SUM | L115: =SUM(L102:L113) -> 3624.128084
B117: 2014 TOTAL | C117: =F115+L115+N101 -> 39813.68422 | D117: MW
B121: 2015 reciprocating engines | H121: 2015 gas turbine | N121: 2015 steam turbine (all continuous)
B123: Output range | C123: Total output (MWe) | D123: % Counted | E123: % Continuous | F123: MW counted | H123: Output range | I123: Total output (MWe) | J123: % Counted | K123: % Continuous | L123: MW counted | N123: Output range | O123: Total output (MWe)
B124: 0.50-1.00 | C124: 11171 | D124: 1 | E124: =6991/15646 -> 0.4468234693 | F124: =E124*D124*C124 -> 4991.464975 | H124: 1.00-2.00 | I124: 162 | J124: 1 | K124: =28/111 -> 0.2522522523 | L124: =K124*J124*I124 -> 40.86486486 | N124: 0.0-1.00 | O124: 2645
B125: 1.01-2.00 | C125: 17538 | D125: 1 | E125: =7192/12355 -> 0.5821125051 | F125: =E125*D125*C125 -> 10209.08911 | H125: 2.01-3.50 | I125: 118 | J125: 1 | K125: =8/40 -> 0.2 | L125: =K125*J125*I125 -> 23.6 | N125: 1.01-5.00 | O125: 36923
B126: 2.01-3.50 | C126: 7088 | D126: 1 | E126: =860/2883 -> 0.2983003815 | F126: =E126*D126*C126 -> 2114.353104 | H126: 3.51-5.00 | I126: 175 | J126: 1 | K126: =7/43 -> 0.1627906977 | L126: 28.48837209 | N126: 5.01-10.00 | O126: 6624
B127: 3.51-5.00 | C127: 674 | D127: 1 | E127: =129/159 -> 0.8113207547 | F127: 546.8301887 | H127: 5.01-7.50 | I127: 235 | J127: 1 | K127: =33/40 -> 0.825 | L127: =K127*J127*I127 -> 193.875 | N127: 10.01-30.00 | O127: 234
B128: 5.01-7.50 | C128: 384 | D128: 1 | E128: =40/64 -> 0.625 | F128: 240 | H128: 7.51-10.00 | I128: 221 | J128: 1 | K128: =26/28 -> 0.9285714286 | L128: 205.2142857 | N128: 30.01-60.00 | O128: 1214
B129: 7.51-10.00 | C129: 1286 | D129: 1 | E129: =137/137 -> 1 | F129: 1286 | H129: 10.01-15.00 | I129: 140 | J129: 1 | K129: =11/11 -> 1 | L129: 140 | N129: 60.01-120.00 | O129: 136
B130: 10.01-15.00 | C130: 75 | D130: 1 | E130: =6/7 -> 0.8571428571 | F130: 64.28571429 | H130: 15.01-20.00 | I130: 205 | J130: 1 | K130: =12/13 -> 0.9230769231 | L130: 189.2307692 | N130: 120.01-200.00 | O130: 2152
B131: 15.01-20.00 | C131: 1339 | D131: 1 | E131: =74/74 -> 1 | F131: 1339 | H131: 20.01-30.00 | I131: 608 | J131: 1 | K131: =21/22 -> 0.9545454545 | L131: 580.3636364 | N131: 200.01-300.00 | O131: 6264
B132: 20.01-30.00 | C132: 0 | D132: 0.6 | E132: 0 | F132: 0 | H132: 30.01-60.00 | I132: 4249 | J132: 0.75 | K132: =91/109 -> 0.8348623853 | L132: =K132*J132*I132 -> 2660.497706 | N132: 300.01-500.00 | O132: 5299
B133: 30.01 and above | C133: 0 | D133: 0.6 | E133: 0 | F133: 0 | H133: 60.01-120.00 | I133: 3898 | J133: 0.1 | K133: =34/46 -> 0.7391304348 | L133: 288.1130435 | N133: 500.01-700.00 | O133: 11640
H134: 120.01-180.00 | I134: 3625 | J134: 0.05 | K134: =19/23 -> 0.8260869565 | L134: 149.7282609 | N134: 700.01-1000.00 | O134: 0
H135: 180.01 and above | I135: 38265 | J135: 0.05 | K135: =109/134 -> 0.8134328358 | L135: 1556.300373 | N135: 1000.00 and above | O135: 1070
E137: SUM | F137: =SUM(F124:F133) -> 20791.0231 | K137: SUM | L137: =SUM(L124:L135) -> 6056.276312 | N137: SUM | O137: =SUM(O124:O135) -> 74201
B139: 2015 TOTAL* | C139: =F137+L137+N101 -> 41909.29941 | D139: MW
B140: *Note: We use the 2014 steam-turbine data in calculating the total for 2015 because output ranges other than 10.01-30.00 and 30.01-60 seem anomalous compared to previous years' data.
B143: 2016 reciprocating engines | H143: 2016 gas turbine | N143: 2016 steam turbine (all continuous)
B145: Output range | C145: Total output (MWe) | D145: % Counted | E145: % Continuous | F145: MW counted | H145: Output range | I145: Total output (MWe) | J145: % Counted | K145: % Continuous | L145: MW counted | N145: Output range | O145: Total output (MWe)
B146: 0.50-1.00 | C146: 7806 | D146: 1 | E146: =3940/(6800+188+3940) -> 0.3605417277 | F146: =C146*D146*E146 -> 2814.388726 | H146: 1.00-2.00 | I146: 86 | J146: 1 | K146: =7/67 -> 0.1044776119 | L146: =I146*J146*K146 -> 8.985074627 | N146: 0.0-1.00 | O146: 2
B147: 1.01-2.00 | C147: 15529 | D147: 1 | E147: =4419/(4419+358+6300) -> 0.3989347296 | F147: =C147*D147*E147 -> 6195.057416 | H147: 2.01-3.50 | I147: 125 | J147: 1 | K147: =6/47 -> 0.1276595745 | L147: =I147*J147*K147 -> 15.95744681 | N147: 1.01-5.00 | O147: 19
B148: 2.01-3.50 | C148: 6896 | D148: 1 | E148: =578/(578+207+1976) -> 0.2093444404 | F148: 1443.639261 | H148: 3.51-5.00 | I148: 176 | J148: 1 | K148: =10/47 -> 0.2127659574 | L148: 37.44680851 | N148: 5.01-10.00 | O148: 42
B149: 3.51-5.00 | C149: 1047 | D149: 1 | E149: =193/(193+47) -> 0.8041666667 | F149: 841.9625 | H149: 5.01-7.50 | I149: 293 | J149: 1 | K149: =46/48 -> 0.9583333333 | L149: 280.7916667 | N149: 10.01-30.00 | O149: 155
B150: 5.01-7.50 | C150: 284 | D150: 1 | E150: =41/47 -> 0.8723404255 | F150: 247.7446809 | H150: 7.51-10.00 | I150: 214 | J150: 1 | K150: =17/17 -> 1 | L150: 214 | N150: 30.01-60.00 | O150: 562
B151: 7.51-10.00 | C151: 893 | D151: 1 | E151: =95/97 -> 0.9793814433 | F151: 874.5876289 | H151: 10.01-15.00 | I151: 243 | J151: 1 | K151: =18/19 -> 0.9473684211 | L151: 230.2105263 | N151: 60.01-120.00 | O151: 490
B152: 10.01-15.00 | C152: 244 | D152: 1 | E152: =18/18 -> 1 | F152: 244 | H152: 15.01-20.00 | I152: 286 | J152: 1 | K152: =11/12 -> 0.9166666667 | L152: 262.1666667 | N152: 120.01-200.00 | O152: 2737
B153: 15.01-20.00 | C153: 2566 | D153: 1 | E153: =141/141 -> 1 | F153: 2566 | H153: 20.01-30.00 | I153: 302 | J153: 1 | K153: =12/12 -> 1 | L153: 302 | N153: 200.01-300.00 | O153: 2423
B154: 20.01-30.00 | C154: 0 | D154: 0.6 | E154: 0 | F154: 0 | H154: 30.01-60.00 | I154: 5800 | J154: 0.75 | K154: =75/(75+57) -> 0.5681818182 | L154: 2471.590909 | N154: 300.01-500.00 | O154: 1137
B155: 30.01 and above | C155: 0 | D155: 0.6 | E155: 0 | F155: 0 | H155: 60.01-120.00 | I155: 1719 | J155: 0.1 | K155: =17/19 -> 0.8947368421 | L155: 153.8052632 | N155: 500.01-700.00 | O155: 594
H156: 120.01-180.00 | I156: 601 | J156: 0.05 | K156: =6/11 -> 0.5454545455 | L156: 16.39090909 | N156: 700.01-1000.00 | O156: 4325
H157: 180.01 and above | I157: 36266 | J157: 0.05 | K157: =100/113 -> 0.8849557522 | L157: 1604.690265 | N157: 1000.00 and above | O157: 175
E159: SUM | F159: =SUM(F146:F155) -> 15227.38021 | K159: SUM | L159: =SUM(L146:L157) -> 5598.035536 | N159: SUM | O159: =SUM(O146:O157) -> 12661
B161: 2016 TOTAL | C161: =F159+L159+O159 -> 33486.41575 | D161: MW
